Publisher Label,Publisher URI,"Supplier","Net Amount (£)","Organisational Unit","Merchant Category Code","Purpose","Payment Date"
"Wolverhampton City Council","http://opendatacommunities.org/id/metropolitan-district-council/wolverhampton","WWW.STERLINGEVENTS.CO.","250.00","Central Training","5999","Training Expenses","28/02/2017"
"Wolverhampton City Council","http://opendatacommunities.org/id/metropolitan-district-council/wolverhampton","G & M HALE (SUNDRIES)","17.00","Discretionary Fund","5992","Materials","28/02/2017"
"Wolverhampton City Council","http://opendatacommunities.org/id/metropolitan-district-council/wolverhampton","G & M HALE (SUNDRIES)","25.60","Discretionary Fund","5992","Materials","28/02/2017"
"Wolverhampton City Council","http://opendatacommunities.org/id/metropolitan-district-council/wolverhampton","G & M HALE LTD","62.10","Discretionary Fund","5992","Materials","28/02/2017"
"Wolverhampton City Council","http://opendatacommunities.org/id/metropolitan-district-council/wolverhampton","G & M HALE LTD","106.40","Discretionary Fund","5992","Materials","28/02/2017"
"Wolverhampton City Council","http://opendatacommunities.org/id/metropolitan-district-council/wolverhampton","MARKS&SPENCER PLC SACA","3.93","Mayoral Expenses","5411","Hospitality","28/02/2017"
"Wolverhampton City Council","http://opendatacommunities.org/id/metropolitan-district-council/wolverhampton","W M MORRISON PLC","11.52","CIN/CP Social Work Unit - Area 6","5411","Comms - Postage","28/02/2017"
"Wolverhampton City Council","http://opendatacommunities.org/id/metropolitan-district-council/wolverhampton","WEST COAST TRAINS","-378.00","CIN/CP S17 SW Unit - Area 3","4112","Public Transport","28/02/2017"
"Wolverhampton City Council","http://opendatacommunities.org/id/metropolitan-district-council/wolverhampton","NETWORK WEST MIDLANDS","220.00","CIN/CP S17 SW Unit - Area 3","9399","Services - Fees and Charges","28/02/2017"
"Wolverhampton City Council","http://opendatacommunities.org/id/metropolitan-district-council/wolverhampton","WEST COAST TRAINS","388.00","CIN/CP S17 SW Unit - Area 3","4112","Public Transport","28/02/2017"
"Wolverhampton City Council","http://opendatacommunities.org/id/metropolitan-district-council/wolverhampton","JONES SKIP HIRE (WOLVE","118.45","EIP Locality 3","7399","Financial Assistance In Exceptional Circ","28/02/2017"
"Wolverhampton City Council","http://opendatacommunities.org/id/metropolitan-district-council/wolverhampton","WEST COAST TRAINS","15.20","Art Gallery","4112","Public Transport","28/02/2017"
"Wolverhampton City Council","http://opendatacommunities.org/id/metropolitan-district-council/wolverhampton","STAFFORDSHIRE COUNTY C","-10.00","LAC Team","9399","Financial Assistance In Exceptional Circ","28/02/2017"
"Wolverhampton City Council","http://opendatacommunities.org/id/metropolitan-district-council/wolverhampton","CT WOLVERHAMPTON","72.92","LAC Transitions Team","8398","Client Allowances","28/02/2017"
"Wolverhampton City Council","http://opendatacommunities.org/id/metropolitan-district-council/wolverhampton","ASDA HOME SHOPPING","-0.10","Ernest Bold Court","5411","Provisions (Not for resale)","28/02/2017"
"Wolverhampton City Council","http://opendatacommunities.org/id/metropolitan-district-council/wolverhampton","ASDA HOME SHOPPING","90.80","Ernest Bold Court","5411","Provisions (Not for resale)","28/02/2017"
"Wolverhampton City Council","http://opendatacommunities.org/id/metropolitan-district-council/wolverhampton","Trainline","55.28","Head of Service - LAC","4112","Public Transport","28/02/2017"
"Wolverhampton City Council","http://opendatacommunities.org/id/metropolitan-district-council/wolverhampton","POST OFFICE","870.85","Invest Black Country","6051","Subsistence","28/02/2017"
"Wolverhampton City Council","http://opendatacommunities.org/id/metropolitan-district-council/wolverhampton","EE & T-MOBILE","166.53","Civic Halls Non Direct Management A/C","4814","Comms - Telephone Call charges","28/02/2017"
"Wolverhampton City Council","http://opendatacommunities.org/id/metropolitan-district-council/wolverhampton","Trainline","150.40","Civic Halls Non Direct Management A/C","4112","Public Transport","28/02/2017"
"Wolverhampton City Council","http://opendatacommunities.org/id/metropolitan-district-council/wolverhampton","WWW.WARWICKSHIRE.GOV.U","104.17","Central Training","9399","Training Expenses","28/02/2017"
"Wolverhampton City Council","http://opendatacommunities.org/id/metropolitan-district-council/wolverhampton","ABBEY RENTALS LTD","208.33","LAC Transitions Team","8999","Accommodation Costs","28/02/2017"
"Wolverhampton City Council","http://opendatacommunities.org/id/metropolitan-district-council/wolverhampton","ABBEY RENTALS LTD","416.67","LAC Transitions Team","8999","Accommodation Costs","28/02/2017"
"Wolverhampton City Council","http://opendatacommunities.org/id/metropolitan-district-council/wolverhampton","ASDA STORES 4452","3.75","Headstart Phase 3","5411","Provisions (Not for resale)","28/02/2017"
"Wolverhampton City Council","http://opendatacommunities.org/id/metropolitan-district-council/wolverhampton","ASDA STORES 4452","11.86","Headstart Phase 3","5411","Subsistence","28/02/2017"
"Wolverhampton City Council","http://opendatacommunities.org/id/metropolitan-district-council/wolverhampton","REGISTRARS OFFICE","10.00","IMPACT","8299","Financial Assistance In Exceptional Circ","28/02/2017"
"Wolverhampton City Council","http://opendatacommunities.org/id/metropolitan-district-council/wolverhampton","PAYPAL  RTPI","50.00","Central Training","8398","Training Expenses","28/02/2017"
"Wolverhampton City Council","http://opendatacommunities.org/id/metropolitan-district-council/wolverhampton","LINKEDIN-314 9473024","2968.58","Strategic ICTS (ICT Serv Budget)","5968","Subscriptions","28/02/2017"
"Wolverhampton City Council","http://opendatacommunities.org/id/metropolitan-district-council/wolverhampton","LIDDELL ELECTRICAL DIS","34.65","Culwell Street Depot","5065","Equipment - R & M","28/02/2017"
"Wolverhampton City Council","http://opendatacommunities.org/id/metropolitan-district-council/wolverhampton","WWW.BIPSOLUTIONS.COM","285.00","Delivery & OCE Development","8244","Conference Expenses","28/02/2017"
"Wolverhampton City Council","http://opendatacommunities.org/id/metropolitan-district-council/wolverhampton","Amazon Svcs Europe,SAR","21.80","Corporate Procurement Unit","5942","Equipment - R & M","28/02/2017"
"Wolverhampton City Council","http://opendatacommunities.org/id/metropolitan-district-council/wolverhampton","ARGOS LTD","57.99","CIN/CP S17 SW Unit - Area 3","5310","Equipment - Purchase","28/02/2017"
"Wolverhampton City Council","http://opendatacommunities.org/id/metropolitan-district-council/wolverhampton","WWW.SMYTHSTOYS.COM","53.98","CIN/CP S17 SW Unit - Area 3","5945","Equipment - Purchase","28/02/2017"
"Wolverhampton City Council","http://opendatacommunities.org/id/metropolitan-district-council/wolverhampton","E01510300000000","70.00","Emergency Duty Team","6011","Financial Assistance In Exceptional Circ","28/02/2017"
"Wolverhampton City Council","http://opendatacommunities.org/id/metropolitan-district-council/wolverhampton","W M MORRISONS.COM","146.21","Discretionary Fund","5411","Provisions (Not for resale)","28/02/2017"
"Wolverhampton City Council","http://opendatacommunities.org/id/metropolitan-district-council/wolverhampton","HOMEBASE LTD 103","53.06","Central Costs","5211","Materials","28/02/2017"
"Wolverhampton City Council","http://opendatacommunities.org/id/metropolitan-district-council/wolverhampton","Virgin Trains","141.30","Housing Regeneration - Strategy & Dev","4112","Public Transport","28/02/2017"
"Wolverhampton City Council","http://opendatacommunities.org/id/metropolitan-district-council/wolverhampton","Virgin Trains","66.30","Housing Regeneration - Strategy & Dev","4112","Public Transport","28/02/2017"
"Wolverhampton City Council","http://opendatacommunities.org/id/metropolitan-district-council/wolverhampton","Amazon UK Marketplace","307.33","Private Sector Housing","5942","Equipment - Purchase","28/02/2017"
"Wolverhampton City Council","http://opendatacommunities.org/id/metropolitan-district-council/wolverhampton","Amazon UK Marketplace","57.09","EIP Locality 1","5942","Equipment - Purchase","28/02/2017"
"Wolverhampton City Council","http://opendatacommunities.org/id/metropolitan-district-council/wolverhampton","ARGOS LTD","204.93","EIP Locality 1","5310","Equipment - Purchase","28/02/2017"
"Wolverhampton City Council","http://opendatacommunities.org/id/metropolitan-district-council/wolverhampton","Amazon UK Marketplace","61.49","EIP Locality 1","5942","Equipment - Purchase","28/02/2017"
"Wolverhampton City Council","http://opendatacommunities.org/id/metropolitan-district-council/wolverhampton","Amazon UK Marketplace","111.57","EIP Locality 2","5942","Books","28/02/2017"
"Wolverhampton City Council","http://opendatacommunities.org/id/metropolitan-district-council/wolverhampton","WWW.KITEPACKAGING.CO.U","25.14","Michael Brennand Spring Touring 2017","5085","Equipment - Purchase","28/02/2017"
"Wolverhampton City Council","http://opendatacommunities.org/id/metropolitan-district-council/wolverhampton","123 REG R/T","7.99","Technical Support","5968","Subscriptions","28/02/2017"
"Wolverhampton City Council","http://opendatacommunities.org/id/metropolitan-district-council/wolverhampton","UXPIN.COM","81.54","City Direct","7372","Computing - Purchase of Software","27/02/2017"
"Wolverhampton City Council","http://opendatacommunities.org/id/metropolitan-district-council/wolverhampton","ARGOS RETAIL GROUP","166.94","LAC Transitions Team","5310","Client Allowances","27/02/2017"
"Wolverhampton City Council","http://opendatacommunities.org/id/metropolitan-district-council/wolverhampton","ARGOS RETAIL GROUP","70.94","LAC Transitions Team","5310","Client Allowances","27/02/2017"
"Wolverhampton City Council","http://opendatacommunities.org/id/metropolitan-district-council/wolverhampton","ARGOS RETAIL GROUP","55.93","LAC Transitions Team","5310","Client Allowances","27/02/2017"
"Wolverhampton City Council","http://opendatacommunities.org/id/metropolitan-district-council/wolverhampton","ARGOS RETAIL GROUP","82.47","LAC Transitions Team","5310","Client Allowances","27/02/2017"
"Wolverhampton City Council","http://opendatacommunities.org/id/metropolitan-district-council/wolverhampton","ARGOS RETAIL GROUP","167.53","LAC Transitions Team","5310","Client Allowances","27/02/2017"
"Wolverhampton City Council","http://opendatacommunities.org/id/metropolitan-district-council/wolverhampton","UNTOUCHABLES","55.00","Cemeteries","5231","Materials","27/02/2017"
"Wolverhampton City Council","http://opendatacommunities.org/id/metropolitan-district-council/wolverhampton","ASDA SUPERSTORE","56.91","EIP Locality 6","5411","Provisions (Not for resale)","27/02/2017"
"Wolverhampton City Council","http://opendatacommunities.org/id/metropolitan-district-council/wolverhampton","DIRECT FLOORING","249.17","LAC Transitions Team","5713","Client Allowances","27/02/2017"
"Wolverhampton City Council","http://opendatacommunities.org/id/metropolitan-district-council/wolverhampton","REGISTRARS OFFICE","20.00","Adoption and Residence Team & Allowances","8299","Services - Fees and Charges","27/02/2017"
"Wolverhampton City Council","http://opendatacommunities.org/id/metropolitan-district-council/wolverhampton","Virgin Trains","143.30","Adoption and Residence Team & Allowances","4112","Public Transport","27/02/2017"
"Wolverhampton City Council","http://opendatacommunities.org/id/metropolitan-district-council/wolverhampton","WATERSTONES","11.99","IMPACT","5942","Books","27/02/2017"
"Wolverhampton City Council","http://opendatacommunities.org/id/metropolitan-district-council/wolverhampton","CHARTERED INST OF LEGA","190.00","Legal Services","8699","Subscriptions","27/02/2017"
"Wolverhampton City Council","http://opendatacommunities.org/id/metropolitan-district-council/wolverhampton","PREMIER INN","139.00","Corporate Procurement Unit","3811","Accommodation Costs","27/02/2017"
"Wolverhampton City Council","http://opendatacommunities.org/id/metropolitan-district-council/wolverhampton","WWW.CABLESUK.CO.UK","7.48","WV Active Business Support","5999","Equipment - Purchase","27/02/2017"
"Wolverhampton City Council","http://opendatacommunities.org/id/metropolitan-district-council/wolverhampton","FACEBK C5FDYB2AR2","9.77","Communications & Marketing - General","7311","Marketing \ Non-staff advertising","27/02/2017"
"Wolverhampton City Council","http://opendatacommunities.org/id/metropolitan-district-council/wolverhampton","FACEBK B5FDYB2AR2","390.52","Communications & Marketing - General","7311","Marketing \ Non-staff advertising","27/02/2017"
"Wolverhampton City Council","http://opendatacommunities.org/id/metropolitan-district-council/wolverhampton","WILKO RETAIL LIMIT","16.05","Central Costs","5722","Equipment - Purchase","27/02/2017"
"Wolverhampton City Council","http://opendatacommunities.org/id/metropolitan-district-council/wolverhampton","WP-THE CRATFS COUNCIL","37.00","Creative Studies Delivery Area","8398","Services - Supplies & Services to users","27/02/2017"
"Wolverhampton City Council","http://opendatacommunities.org/id/metropolitan-district-council/wolverhampton","AMAZON.CO.UK","10.38","EIP Locality 2","5999","Equipment - Purchase","27/02/2017"
"Wolverhampton City Council","http://opendatacommunities.org/id/metropolitan-district-council/wolverhampton","Amazon Svcs Europe,SAR","24.53","EIP Locality 2","5942","Books","27/02/2017"
"Wolverhampton City Council","http://opendatacommunities.org/id/metropolitan-district-council/wolverhampton","Amazon UK Marketplace","92.49","EIP Locality 2","5942","Books","27/02/2017"
"Wolverhampton City Council","http://opendatacommunities.org/id/metropolitan-district-council/wolverhampton","TGI FRIDAY'S","18.32","Headstart Phase 3","5812","Subsistence","27/02/2017"
"Wolverhampton City Council","http://opendatacommunities.org/id/metropolitan-district-council/wolverhampton","WEST COAST TRAINS","25.42","Headstart Phase 3","4112","Public Transport","27/02/2017"
"Wolverhampton City Council","http://opendatacommunities.org/id/metropolitan-district-council/wolverhampton","PREMIER INN","7.96","Headstart Phase 3","3811","Subsistence","27/02/2017"
"Wolverhampton City Council","http://opendatacommunities.org/id/metropolitan-district-council/wolverhampton","BARCLAYS BANK PLC","30.00","Ernest Bold Court","6011","Provisions (Not for resale)","27/02/2017"
"Wolverhampton City Council","http://opendatacommunities.org/id/metropolitan-district-council/wolverhampton","ASDA SUPERSTORE","44.83","CIN/CP S17 SW Unit - Area 5","5411","Provisions (Not for resale)","27/02/2017"
"Wolverhampton City Council","http://opendatacommunities.org/id/metropolitan-district-council/wolverhampton","LIDDELL ELECTRICAL DIS","81.78","Cleaning of Buildings - General","5065","Equipment - R & M","27/02/2017"
"Wolverhampton City Council","http://opendatacommunities.org/id/metropolitan-district-council/wolverhampton","CURRYS ONLINE","116.65","Learning Disabilities Management","5732","Services - Consultants","27/02/2017"
"Wolverhampton City Council","http://opendatacommunities.org/id/metropolitan-district-council/wolverhampton","TVLICENSING.CO.UK","145.50","LAC Transitions Team","7392","Client Allowances","27/02/2017"
"Wolverhampton City Council","http://opendatacommunities.org/id/metropolitan-district-council/wolverhampton","AMAZON.CO.UK","4.99","Global Budgets","5999","Books","27/02/2017"
"Wolverhampton City Council","http://opendatacommunities.org/id/metropolitan-district-council/wolverhampton","AMAZON UK RETAIL AMAZO","12.98","Global Budgets","5999","Books","27/02/2017"
"Wolverhampton City Council","http://opendatacommunities.org/id/metropolitan-district-council/wolverhampton","E01577600000000","80.00","EIP Locality 3","6011","Financial Assistance In Exceptional Circ","27/02/2017"
"Wolverhampton City Council","http://opendatacommunities.org/id/metropolitan-district-council/wolverhampton","ASDA HOME SHOPPING","-0.21","Ernest Bold Court","5411","Provisions (Not for resale)","27/02/2017"
"Wolverhampton City Council","http://opendatacommunities.org/id/metropolitan-district-council/wolverhampton","ASDA HOME SHOPPING","87.66","Ernest Bold Court","5411","Provisions (Not for resale)","27/02/2017"
"Wolverhampton City Council","http://opendatacommunities.org/id/metropolitan-district-council/wolverhampton","WWW.ICO.GOV.UK","35.00","Members Expenses","9399","Subscriptions","27/02/2017"
"Wolverhampton City Council","http://opendatacommunities.org/id/metropolitan-district-council/wolverhampton","NETWORK WEST MIDLANDS","66.00","CIN/CP S17 SW Unit - Area 4","9399","Services - Fees and Charges","27/02/2017"
"Wolverhampton City Council","http://opendatacommunities.org/id/metropolitan-district-council/wolverhampton","ATM 203431","30.00","Ernest Bold Court","6011","Cleaning Supplies and Materials","27/02/2017"
"Wolverhampton City Council","http://opendatacommunities.org/id/metropolitan-district-council/wolverhampton","LOEWS HOTELS","199.00","School Improvement","3654","Conference Expenses","27/02/2017"
"Wolverhampton City Council","http://opendatacommunities.org/id/metropolitan-district-council/wolverhampton","PREMIER INN","85.99","Adoption and Residence Team & Allowances","3811","Services - Supplies & Services to users","27/02/2017"
"Wolverhampton City Council","http://opendatacommunities.org/id/metropolitan-district-council/wolverhampton","Amazon UK Marketplace","14.98","EIP Locality 3","5942","Equipment - Purchase","27/02/2017"
"Wolverhampton City Council","http://opendatacommunities.org/id/metropolitan-district-council/wolverhampton","CUMMINGS BROTHERS LOCK","30.00","Assessment Team (West)","7399","Equipment - Purchase","27/02/2017"
"Wolverhampton City Council","http://opendatacommunities.org/id/metropolitan-district-council/wolverhampton","Cineworld WOL CP","26.20","Youth Offending Team","7922","Educ Trips, Holidays, Outings, Activity","24/02/2017"
"Wolverhampton City Council","http://opendatacommunities.org/id/metropolitan-district-council/wolverhampton","ARLINGTON STUDENT","255.00","LAC Transitions Team","6513","Client Allowances","24/02/2017"
"Wolverhampton City Council","http://opendatacommunities.org/id/metropolitan-district-council/wolverhampton","ARGOS RETAIL GROUP","126.48","LAC Transitions Team","5310","Client Allowances","24/02/2017"
"Wolverhampton City Council","http://opendatacommunities.org/id/metropolitan-district-council/wolverhampton","PAYPAL  MAILSHACK","16.95","LAC Transitions Team","5169","Client Allowances","24/02/2017"
"Wolverhampton City Council","http://opendatacommunities.org/id/metropolitan-district-council/wolverhampton","WWW.ICO.GOV.UK","35.00","Central Costs","9399","Services - Fees and Charges","24/02/2017"
"Wolverhampton City Council","http://opendatacommunities.org/id/metropolitan-district-council/wolverhampton","SurveyMonkey","249.17","Safeguarding Board - Childrens","7372","Computing - Purchase of Software","24/02/2017"
"Wolverhampton City Council","http://opendatacommunities.org/id/metropolitan-district-council/wolverhampton","BEKIR GOK","6.00","Headstart Phase 3","4121","Public Transport","24/02/2017"
"Wolverhampton City Council","http://opendatacommunities.org/id/metropolitan-district-council/wolverhampton","CENTRAL LONDON GIFTS","20.00","Headstart Phase 3","5947","Equipment - Purchase","24/02/2017"
"Wolverhampton City Council","http://opendatacommunities.org/id/metropolitan-district-council/wolverhampton","CHINA CITY","28.05","Headstart Phase 3","5812","Subsistence","24/02/2017"
"Wolverhampton City Council","http://opendatacommunities.org/id/metropolitan-district-council/wolverhampton","TAXI FARE BY VERIFONE","11.18","Headstart Phase 3","4121","Public Transport","24/02/2017"
"Wolverhampton City Council","http://opendatacommunities.org/id/metropolitan-district-council/wolverhampton","HIGHFIELD HOUSE HO","285.00","CIN/CP S17 SW Unit - Area 3","7011","Services - Supplies & Services to users","24/02/2017"
"Wolverhampton City Council","http://opendatacommunities.org/id/metropolitan-district-council/wolverhampton","AMAZON UK RETAIL AMAZO","66.13","Director of Education","5999","Equipment - Purchase","24/02/2017"
"Wolverhampton City Council","http://opendatacommunities.org/id/metropolitan-district-council/wolverhampton","Amazon EU","66.13","Director of Education","5969","Equipment - Purchase","24/02/2017"
"Wolverhampton City Council","http://opendatacommunities.org/id/metropolitan-district-council/wolverhampton","Amazon UK Marketplace","12.29","Archives","5942","Books","24/02/2017"
"Wolverhampton City Council","http://opendatacommunities.org/id/metropolitan-district-council/wolverhampton","ARGOS LTD","24.98","Wolverhampton Indoor and Open Market","5310","Equipment - Purchase","24/02/2017"
"Wolverhampton City Council","http://opendatacommunities.org/id/metropolitan-district-council/wolverhampton","CARVER/WOLVERHAMPTON/L","57.78","Cleaning of Buildings - General","5211","Materials","24/02/2017"
"Wolverhampton City Council","http://opendatacommunities.org/id/metropolitan-district-council/wolverhampton","Amazon UK Marketplace","13.31","EIP Locality 2","5942","Books","24/02/2017"
"Wolverhampton City Council","http://opendatacommunities.org/id/metropolitan-district-council/wolverhampton","Amazon UK Marketplace","285.86","EIP Locality 2","5942","Books","24/02/2017"
"Wolverhampton City Council","http://opendatacommunities.org/id/metropolitan-district-council/wolverhampton","Amazon UK Marketplace","3.32","EIP Locality 2","5942","Books","24/02/2017"
"Wolverhampton City Council","http://opendatacommunities.org/id/metropolitan-district-council/wolverhampton","Amazon UK Marketplace","6.42","EIP Locality 2","5942","Books","24/02/2017"
"Wolverhampton City Council","http://opendatacommunities.org/id/metropolitan-district-council/wolverhampton","Amazon UK Marketplace","4.99","EIP Locality 2","5942","Books","24/02/2017"
"Wolverhampton City Council","http://opendatacommunities.org/id/metropolitan-district-council/wolverhampton","Amazon UK Marketplace","59.80","EIP Locality 2","5942","Books","24/02/2017"
"Wolverhampton City Council","http://opendatacommunities.org/id/metropolitan-district-council/wolverhampton","ASDA SUPERSTORE","81.08","EIP Locality 3","5411","Provisions (Not for resale)","24/02/2017"
"Wolverhampton City Council","http://opendatacommunities.org/id/metropolitan-district-council/wolverhampton","ARGOS RETAIL GROUP","186.99","LAC Team","5310","Financial Assistance In Exceptional Circ","24/02/2017"
"Wolverhampton City Council","http://opendatacommunities.org/id/metropolitan-district-council/wolverhampton","POST OFFICE COUNTER","59.50","CIN/CP Social Work Unit - Area 5","9402","Comms - Postage","24/02/2017"
"Wolverhampton City Council","http://opendatacommunities.org/id/metropolitan-district-council/wolverhampton","NCP BIRMINGHAM AIRPORT","34.41","International Trade","7523","Parking Fees","24/02/2017"
"Wolverhampton City Council","http://opendatacommunities.org/id/metropolitan-district-council/wolverhampton","NCP BIRMINGHAM AIRPORT","34.41","Invest Black Country","7523","Parking Fees","24/02/2017"
"Wolverhampton City Council","http://opendatacommunities.org/id/metropolitan-district-council/wolverhampton","BEATTIES","24.05","Strategic Director Place","5311","Equipment - Purchase","24/02/2017"
"Wolverhampton City Council","http://opendatacommunities.org/id/metropolitan-district-council/wolverhampton","ESENDEX LIMITED","62.50","Civic Halls Non Direct Management A/C","4814","Comms - Telephone Call charges","24/02/2017"
"Wolverhampton City Council","http://opendatacommunities.org/id/metropolitan-district-council/wolverhampton","POST OFFICE COUNTER","11.90","CIN/CP S17 SW Unit - Area 7","9402","Comms - Postage","24/02/2017"
"Wolverhampton City Council","http://opendatacommunities.org/id/metropolitan-district-council/wolverhampton","WWW.PMGLTD.CO.UK","462.00","School Improvement","7399","Events","24/02/2017"
"Wolverhampton City Council","http://opendatacommunities.org/id/metropolitan-district-council/wolverhampton","WWW.ICO.GOV.UK","35.00","EIP Locality 3","9399","Services - Fees and Charges","24/02/2017"
"Wolverhampton City Council","http://opendatacommunities.org/id/metropolitan-district-council/wolverhampton","HIRE STATION-LTD","65.00","Fountain Maintenance","7394","Equipment - Purchase","24/02/2017"
"Wolverhampton City Council","http://opendatacommunities.org/id/metropolitan-district-council/wolverhampton","BRITANNIA","401.67","No Recourse to Public Funds - CIN/CP","7011","Accommodation Costs","24/02/2017"
"Wolverhampton City Council","http://opendatacommunities.org/id/metropolitan-district-council/wolverhampton","NAS SCOTLAND PEOPLE","10.66","LAC Transitions Team","9399","Client Allowances","24/02/2017"
"Wolverhampton City Council","http://opendatacommunities.org/id/metropolitan-district-council/wolverhampton","WWW.PETSATHOME.COM","50.00","LAC Transitions Team","5995","Accommodation Costs","23/02/2017"
"Wolverhampton City Council","http://opendatacommunities.org/id/metropolitan-district-council/wolverhampton","Trainline","58.91","Youth Offending Team","4112","Public Transport","23/02/2017"
"Wolverhampton City Council","http://opendatacommunities.org/id/metropolitan-district-council/wolverhampton","CURRYS S/S","74.97","Civic Centre","5732","Equipment - Purchase","23/02/2017"
"Wolverhampton City Council","http://opendatacommunities.org/id/metropolitan-district-council/wolverhampton","FACEBK SX9FBAEA82","76.17","Communications & Marketing - General","7311","Marketing \ Non-staff advertising","23/02/2017"
"Wolverhampton City Council","http://opendatacommunities.org/id/metropolitan-district-council/wolverhampton","FACEBK RX9FBAEA82","323.83","Communications & Marketing - General","7311","Marketing \ Non-staff advertising","23/02/2017"
"Wolverhampton City Council","http://opendatacommunities.org/id/metropolitan-district-council/wolverhampton","WOLVERHAMPTON TROPHY C","12.50","Communications & Marketing - General","5999","Equipment - Purchase","23/02/2017"
"Wolverhampton City Council","http://opendatacommunities.org/id/metropolitan-district-council/wolverhampton","TESCO STORES","6.01","Headstart Phase 3","5411","Subsistence","23/02/2017"
"Wolverhampton City Council","http://opendatacommunities.org/id/metropolitan-district-council/wolverhampton","DINING ROOM","4.92","Headstart Phase 3","8220","Subsistence","23/02/2017"
"Wolverhampton City Council","http://opendatacommunities.org/id/metropolitan-district-council/wolverhampton","Amazon UK Marketplace","10.82","Global Budgets","5942","Books","23/02/2017"
"Wolverhampton City Council","http://opendatacommunities.org/id/metropolitan-district-council/wolverhampton","STAFFORDSHIRE COUNTY C","10.00","LAC Team","9399","Financial Assistance In Exceptional Circ","23/02/2017"
"Wolverhampton City Council","http://opendatacommunities.org/id/metropolitan-district-council/wolverhampton","WOLVERHAMPTON TROPHY C","60.00","Education Business Partnership","5999","Equipment - Purchase","23/02/2017"
"Wolverhampton City Council","http://opendatacommunities.org/id/metropolitan-district-council/wolverhampton","WOLVERHAMPTON TROPHY C","92.50","Education Business Partnership","5999","Equipment - Purchase","23/02/2017"
"Wolverhampton City Council","http://opendatacommunities.org/id/metropolitan-district-council/wolverhampton","ARGOS LTD","19.98","LAC Transitions Team","5310","Client Allowances","23/02/2017"
"Wolverhampton City Council","http://opendatacommunities.org/id/metropolitan-district-council/wolverhampton","ARGOS LTD","231.62","LAC Transitions Team","5310","Client Allowances","23/02/2017"
"Wolverhampton City Council","http://opendatacommunities.org/id/metropolitan-district-council/wolverhampton","ROYAL CARPETS","291.67","LAC Transitions Team","5713","Client Allowances","23/02/2017"
"Wolverhampton City Council","http://opendatacommunities.org/id/metropolitan-district-council/wolverhampton","WWW.CARESHOP.CO.UK","130.86","Ernest Bold Court","5999","Equipment - Purchase","23/02/2017"
"Wolverhampton City Council","http://opendatacommunities.org/id/metropolitan-district-council/wolverhampton","Virgin Trains","61.60","Adoption and Residence Team & Allowances","4112","Public Transport","23/02/2017"
"Wolverhampton City Council","http://opendatacommunities.org/id/metropolitan-district-council/wolverhampton","Virgin Trains","68.80","Adoption and Residence Team & Allowances","4112","Public Transport","23/02/2017"
"Wolverhampton City Council","http://opendatacommunities.org/id/metropolitan-district-council/wolverhampton","ARGOS DIRECT","-19.94","CIN/CP S17 SW Unit - Area 5","5964","Equipment - Purchase","23/02/2017"
"Wolverhampton City Council","http://opendatacommunities.org/id/metropolitan-district-council/wolverhampton","SAINSBURYS LOCAL (4357","6.60","Ground Maintenance Overheads","5411","Materials","23/02/2017"
"Wolverhampton City Council","http://opendatacommunities.org/id/metropolitan-district-council/wolverhampton","SAINSBURYS LOCAL (4357","6.60","Street Cleansing Overheads","5411","Materials","23/02/2017"
"Wolverhampton City Council","http://opendatacommunities.org/id/metropolitan-district-council/wolverhampton","VERIFONE TAXI/PRIVATE","7.00","Headstart Phase 3","4121","Public Transport","23/02/2017"
"Wolverhampton City Council","http://opendatacommunities.org/id/metropolitan-district-council/wolverhampton","CMT (UK) LTD - GLASGOW","10.83","Headstart Phase 3","4121","Public Transport","23/02/2017"
"Wolverhampton City Council","http://opendatacommunities.org/id/metropolitan-district-council/wolverhampton","CMT (UK) LTD - GLASGOW","7.33","Headstart Phase 3","4121","Public Transport","23/02/2017"
"Wolverhampton City Council","http://opendatacommunities.org/id/metropolitan-district-council/wolverhampton","NOMAD WEST COAST L","4.17","Headstart Phase 3","4816","Public Transport","23/02/2017"
"Wolverhampton City Council","http://opendatacommunities.org/id/metropolitan-district-council/wolverhampton","SKR AbeBooks.uk 3VBZLD","8.50","Archives","5942","Books","23/02/2017"
"Wolverhampton City Council","http://opendatacommunities.org/id/metropolitan-district-council/wolverhampton","SKR AbeBooks.uk 3VBZLC","9.24","Archives","5942","Books","23/02/2017"
"Wolverhampton City Council","http://opendatacommunities.org/id/metropolitan-district-council/wolverhampton","ASDA HOME SHOPPING","-2.94","Education And Access","5411","Provisions (Not for resale)","23/02/2017"
"Wolverhampton City Council","http://opendatacommunities.org/id/metropolitan-district-council/wolverhampton","ASDA HOME SHOPPING","57.15","Education And Access","5411","Provisions (Not for resale)","23/02/2017"
"Wolverhampton City Council","http://opendatacommunities.org/id/metropolitan-district-council/wolverhampton","Virgin Trains","74.20","Housing Regeneration - Strategy & Dev","4112","Public Transport","23/02/2017"
"Wolverhampton City Council","http://opendatacommunities.org/id/metropolitan-district-council/wolverhampton","ARGOS RETAIL GROUP","119.94","EIP Locality 2","5310","Financial Assistance In Exceptional Circ","23/02/2017"
"Wolverhampton City Council","http://opendatacommunities.org/id/metropolitan-district-council/wolverhampton","Amazon EU","15.19","EIP Locality 2","5969","Equipment - Purchase","23/02/2017"
"Wolverhampton City Council","http://opendatacommunities.org/id/metropolitan-district-council/wolverhampton","Amazon UK Marketplace","170.96","EIP Locality 2","5942","Books","23/02/2017"
"Wolverhampton City Council","http://opendatacommunities.org/id/metropolitan-district-council/wolverhampton","Trainline","69.87","CIN/CP S17 SW Unit - Area 1","4112","Public Transport","23/02/2017"
"Wolverhampton City Council","http://opendatacommunities.org/id/metropolitan-district-council/wolverhampton","SSC RODBASTON","133.33","Northicote Farm","8220","Training Expenses","23/02/2017"
"Wolverhampton City Council","http://opendatacommunities.org/id/metropolitan-district-council/wolverhampton","TFM FARM & COUNTRY SUP","181.36","Northicote Farm","5399","Materials","23/02/2017"
"Wolverhampton City Council","http://opendatacommunities.org/id/metropolitan-district-council/wolverhampton","Amazon UK Marketplace","2.74","EIP Locality 2","5942","Books","23/02/2017"
"Wolverhampton City Council","http://opendatacommunities.org/id/metropolitan-district-council/wolverhampton","Amazon UK Marketplace","2.74","EIP Locality 2","5942","Books","23/02/2017"
"Wolverhampton City Council","http://opendatacommunities.org/id/metropolitan-district-council/wolverhampton","Amazon UK Marketplace","2.16","EIP Locality 2","5942","Books","23/02/2017"
"Wolverhampton City Council","http://opendatacommunities.org/id/metropolitan-district-council/wolverhampton","Amazon UK Marketplace","2.16","EIP Locality 2","5942","Books","23/02/2017"
"Wolverhampton City Council","http://opendatacommunities.org/id/metropolitan-district-council/wolverhampton","Amazon UK Marketplace","15.59","EIP Locality 2","5942","Books","23/02/2017"
"Wolverhampton City Council","http://opendatacommunities.org/id/metropolitan-district-council/wolverhampton","Amazon UK Marketplace","73.98","EIP Locality 2","5942","Books","23/02/2017"
"Wolverhampton City Council","http://opendatacommunities.org/id/metropolitan-district-council/wolverhampton","Amazon UK Marketplace","7.48","EIP Locality 2","5942","Books","23/02/2017"
"Wolverhampton City Council","http://opendatacommunities.org/id/metropolitan-district-council/wolverhampton","Amazon UK Marketplace","1.75","EIP Locality 2","5942","Books","23/02/2017"
"Wolverhampton City Council","http://opendatacommunities.org/id/metropolitan-district-council/wolverhampton","WEST MID TRAVEL","446.85","Community Enablement","4131","Public Transport","23/02/2017"
"Wolverhampton City Council","http://opendatacommunities.org/id/metropolitan-district-council/wolverhampton","PREMIER INN","67.50","Michael Brennand Spring Touring 2017","3811","Services - Supplies & Services to users","23/02/2017"
"Wolverhampton City Council","http://opendatacommunities.org/id/metropolitan-district-council/wolverhampton","Virgin Trains","7.60","Children & Young People Support Costs","4112","Public Transport","23/02/2017"
"Wolverhampton City Council","http://opendatacommunities.org/id/metropolitan-district-council/wolverhampton","Amazon Prime","7.99","Technical Support","5968","Subscriptions","23/02/2017"
"Wolverhampton City Council","http://opendatacommunities.org/id/metropolitan-district-council/wolverhampton","TESCO PFS 2185","5.18","Mayoral Expenses","5541","Hospitality","22/02/2017"
"Wolverhampton City Council","http://opendatacommunities.org/id/metropolitan-district-council/wolverhampton","SAINSBURYS (2340)","113.30","Queen St Townscape Heritage (HLF)","5411","Provisions (Not for resale)","22/02/2017"
"Wolverhampton City Council","http://opendatacommunities.org/id/metropolitan-district-council/wolverhampton","Cross Country Trains","19.10","Commissioning Disabilities","4112","Public Transport","22/02/2017"
"Wolverhampton City Council","http://opendatacommunities.org/id/metropolitan-district-council/wolverhampton","AMAZON UK RETAIL AMAZO","6.38","Technical Support","5999","Equipment - Purchase","22/02/2017"
"Wolverhampton City Council","http://opendatacommunities.org/id/metropolitan-district-council/wolverhampton","WAYFAIR STORES LIM","-147.96","CIN/CP S17 SW Unit - Area 5","5965","Equipment - Purchase","22/02/2017"
"Wolverhampton City Council","http://opendatacommunities.org/id/metropolitan-district-council/wolverhampton","ARGOS RETAIL GROUP","19.94","CIN/CP S17 SW Unit - Area 5","5310","Equipment - Purchase","22/02/2017"
"Wolverhampton City Council","http://opendatacommunities.org/id/metropolitan-district-council/wolverhampton","WWW.HIVIS.NET","68.29","Street Cleansing Overheads","5137","Clothing / Uniforms","22/02/2017"
"Wolverhampton City Council","http://opendatacommunities.org/id/metropolitan-district-council/wolverhampton","ASDA SUPERSTORE","16.76","Community Enablement","5411","Provisions (Not for resale)","22/02/2017"
"Wolverhampton City Council","http://opendatacommunities.org/id/metropolitan-district-council/wolverhampton","Trainline","12.44","Adoption and Residence Team & Allowances","4112","Public Transport","22/02/2017"
"Wolverhampton City Council","http://opendatacommunities.org/id/metropolitan-district-council/wolverhampton","Virgin Trains","74.55","Members Expenses","4112","Public Transport","22/02/2017"
"Wolverhampton City Council","http://opendatacommunities.org/id/metropolitan-district-council/wolverhampton","Amazon UK Marketplace","22.07","Technical Support","5942","Books","22/02/2017"
"Wolverhampton City Council","http://opendatacommunities.org/id/metropolitan-district-council/wolverhampton","Amazon EU","12.18","Global Budgets","5969","Books","22/02/2017"
"Wolverhampton City Council","http://opendatacommunities.org/id/metropolitan-district-council/wolverhampton","Amazon UK Marketplace","15.79","Global Budgets","5942","Books","22/02/2017"
"Wolverhampton City Council","http://opendatacommunities.org/id/metropolitan-district-council/wolverhampton","B&M RETAIL LTD","24.00","Inclusion Support","5310","Equipment - Purchase","22/02/2017"
"Wolverhampton City Council","http://opendatacommunities.org/id/metropolitan-district-council/wolverhampton","HOMEBASE LTD 103","37.28","College of Further Education","5211","Materials","22/02/2017"
"Wolverhampton City Council","http://opendatacommunities.org/id/metropolitan-district-council/wolverhampton","CURRYS ONLINE","199.99","CIN/CP S17 SW Unit - Area 7","5732","Equipment - Purchase","22/02/2017"
"Wolverhampton City Council","http://opendatacommunities.org/id/metropolitan-district-council/wolverhampton","GRO HM PASSPORT OFFICE","23.40","Legal Services","9399","Services - Fees and Charges","22/02/2017"
"Wolverhampton City Council","http://opendatacommunities.org/id/metropolitan-district-council/wolverhampton","ARGOS RETAIL GROUP","94.98","Upper Pendeford Farm Childrens Home","5310","Equipment - Purchase","22/02/2017"
"Wolverhampton City Council","http://opendatacommunities.org/id/metropolitan-district-council/wolverhampton","Amazon EU","29.99","SEN Early Years Team","5969","Equipment - Purchase","22/02/2017"
"Wolverhampton City Council","http://opendatacommunities.org/id/metropolitan-district-council/wolverhampton","HM PASSPORT OFFICE","144.00","LAC Education Team (LACE)","9399","Services - Fees and Charges","22/02/2017"
"Wolverhampton City Council","http://opendatacommunities.org/id/metropolitan-district-council/wolverhampton","CT WOLVERHAMPTON","104.17","LAC Transitions Team","8398","Client Allowances","22/02/2017"
"Wolverhampton City Council","http://opendatacommunities.org/id/metropolitan-district-council/wolverhampton","PAYPAL  VALIDATE UK","21.67","LAC Transitions Team","9399","Client Allowances","22/02/2017"
"Wolverhampton City Council","http://opendatacommunities.org/id/metropolitan-district-council/wolverhampton","DVLA DRIVER ONLINE","28.33","LAC Transitions Team","9399","Client Allowances","22/02/2017"
"Wolverhampton City Council","http://opendatacommunities.org/id/metropolitan-district-council/wolverhampton","Amazon UK Marketplace","8.61","Strategic ICTS (ICT Serv Budget)","5942","Computing - Purchase of Hardware","22/02/2017"
"Wolverhampton City Council","http://opendatacommunities.org/id/metropolitan-district-council/wolverhampton","TVLICENSING.CO.UK","145.50","LAC Transitions Team","7392","Client Allowances","22/02/2017"
"Wolverhampton City Council","http://opendatacommunities.org/id/metropolitan-district-council/wolverhampton","ASDA SUPERSTORE","100.00","CIN/CP S17 SW Unit - Area 3","5411","Provisions (Not for resale)","22/02/2017"
"Wolverhampton City Council","http://opendatacommunities.org/id/metropolitan-district-council/wolverhampton","ASDA SUPERSTORE","200.00","CIN/CP S17 SW Unit - Area 3","5411","Provisions (Not for resale)","22/02/2017"
"Wolverhampton City Council","http://opendatacommunities.org/id/metropolitan-district-council/wolverhampton","CARVER/WOLVERHAMPTON/L","16.67","Communications & Marketing - General","5211","Marketing \ Non-staff advertising","22/02/2017"
"Wolverhampton City Council","http://opendatacommunities.org/id/metropolitan-district-council/wolverhampton","ASDA HOME SHOPPING","269.68","Upper Pendeford Farm Childrens Home","5411","Provisions (Not for resale)","22/02/2017"
"Wolverhampton City Council","http://opendatacommunities.org/id/metropolitan-district-council/wolverhampton","ASDA HOME SHOPPING","5.07","Upper Pendeford Farm Childrens Home","5411","Provisions (Not for resale)","22/02/2017"
"Wolverhampton City Council","http://opendatacommunities.org/id/metropolitan-district-council/wolverhampton","DINING ROOM","9.06","Headstart Phase 3","8220","Subsistence","22/02/2017"
"Wolverhampton City Council","http://opendatacommunities.org/id/metropolitan-district-council/wolverhampton","DEBENHAMS","194.08","Mayoral Expenses","5311","Clothing / Uniforms","21/02/2017"
"Wolverhampton City Council","http://opendatacommunities.org/id/metropolitan-district-council/wolverhampton","MATALAN","20.00","Mayoral Expenses","5691","Clothing / Uniforms","21/02/2017"
"Wolverhampton City Council","http://opendatacommunities.org/id/metropolitan-district-council/wolverhampton","NEXT-0637","66.67","Mayoral Expenses","5651","Clothing / Uniforms","21/02/2017"
"Wolverhampton City Council","http://opendatacommunities.org/id/metropolitan-district-council/wolverhampton","ROMAN ORIGINALS","18.33","Mayoral Expenses","5621","Clothing / Uniforms","21/02/2017"
"Wolverhampton City Council","http://opendatacommunities.org/id/metropolitan-district-council/wolverhampton","BARCLAYS BANK PLC","250.00","CIN/CP S17 SW Unit - Area 6","6011","Financial Assistance In Exceptional Circ","21/02/2017"
"Wolverhampton City Council","http://opendatacommunities.org/id/metropolitan-district-council/wolverhampton","Virgin Trains","54.50","Members Expenses","4112","Public Transport","21/02/2017"
"Wolverhampton City Council","http://opendatacommunities.org/id/metropolitan-district-council/wolverhampton","Amazon UK Marketplace","3.64","Licensing - General","5942","Equipment - Purchase","21/02/2017"
"Wolverhampton City Council","http://opendatacommunities.org/id/metropolitan-district-council/wolverhampton","LOYD WEDNESFIELD WOLVE","90.00","EIP Locality 8","6011","Grant Payments","21/02/2017"
"Wolverhampton City Council","http://opendatacommunities.org/id/metropolitan-district-council/wolverhampton","Trainline","55.28","Service Director City Economy","4112","Public Transport","21/02/2017"
"Wolverhampton City Council","http://opendatacommunities.org/id/metropolitan-district-council/wolverhampton","ARGOS RETAIL GROUP","24.12","Communications & Marketing - General","5310","Equipment - Purchase","21/02/2017"
"Wolverhampton City Council","http://opendatacommunities.org/id/metropolitan-district-council/wolverhampton","ROYAL CARPETS","83.33","LAC Transitions Team","5713","Client Allowances","21/02/2017"
"Wolverhampton City Council","http://opendatacommunities.org/id/metropolitan-district-council/wolverhampton","DECATHLON","6.65","Headstart Phase 3","5941","Educ Trips, Holidays, Outings, Activity","21/02/2017"
"Wolverhampton City Council","http://opendatacommunities.org/id/metropolitan-district-council/wolverhampton","TESCO STORES 5397","2.07","EIP Locality 1","5411","Provisions (Resale)","21/02/2017"
"Wolverhampton City Council","http://opendatacommunities.org/id/metropolitan-district-council/wolverhampton","IKEA ONLINE","320.83","EIP Locality 2","5719","Equipment - Purchase","21/02/2017"
"Wolverhampton City Council","http://opendatacommunities.org/id/metropolitan-district-council/wolverhampton","Amazon UK Marketplace","10.99","Technical Support","5942","Books","21/02/2017"
"Wolverhampton City Council","http://opendatacommunities.org/id/metropolitan-district-council/wolverhampton","ITUNES.COM/BILL","15.98","Learning Technologies","5735","Computing - Purchase of Software","21/02/2017"
"Wolverhampton City Council","http://opendatacommunities.org/id/metropolitan-district-council/wolverhampton","Amazon UK Marketplace","6.46","Global Budgets","5942","Books","21/02/2017"
"Wolverhampton City Council","http://opendatacommunities.org/id/metropolitan-district-council/wolverhampton","SPORTSDIRECT 383","29.99","IMPACT","5941","Financial Assistance In Exceptional Circ","21/02/2017"
"Wolverhampton City Council","http://opendatacommunities.org/id/metropolitan-district-council/wolverhampton","VIDEKONLINE.CO.UK","134.50","Strategic ICTS (ICT Serv Budget)","5722","Equipment - Purchase","21/02/2017"
"Wolverhampton City Council","http://opendatacommunities.org/id/metropolitan-district-council/wolverhampton","SP  MR SOFA LIMITED","348.99","LAC Transitions Team","5712","Client Allowances","21/02/2017"
"Wolverhampton City Council","http://opendatacommunities.org/id/metropolitan-district-council/wolverhampton","AMAZON UK RETAIL AMAZO","15.98","Aldersley Leisure Village","5999","Equipment - Purchase","21/02/2017"
"Wolverhampton City Council","http://opendatacommunities.org/id/metropolitan-district-council/wolverhampton","SAINSBURYS","140.00","46a, Second Avenue, Low Hill","6011","Financial Assistance In Exceptional Circ","21/02/2017"
"Wolverhampton City Council","http://opendatacommunities.org/id/metropolitan-district-council/wolverhampton","Virgin Trains","164.50","LAC Team","4112","Public Transport","21/02/2017"
"Wolverhampton City Council","http://opendatacommunities.org/id/metropolitan-district-council/wolverhampton","ASDA HOME SHOPPING","81.31","Ernest Bold Court","5411","Provisions (Not for resale)","21/02/2017"
"Wolverhampton City Council","http://opendatacommunities.org/id/metropolitan-district-council/wolverhampton","ASDA HOME SHOPPING","0.03","Ernest Bold Court","5411","Provisions (Not for resale)","21/02/2017"
"Wolverhampton City Council","http://opendatacommunities.org/id/metropolitan-district-council/wolverhampton","EB  WEBINAR SOCIAL MED","41.94","Scrutiny & Transparency","7399","Training Expenses","21/02/2017"
"Wolverhampton City Council","http://opendatacommunities.org/id/metropolitan-district-council/wolverhampton","Amazon UK Marketplace","5.92","Legal Services","5942","Books","21/02/2017"
"Wolverhampton City Council","http://opendatacommunities.org/id/metropolitan-district-council/wolverhampton","Amazon UK Marketplace","10.00","Legal Services","5942","Books","21/02/2017"
"Wolverhampton City Council","http://opendatacommunities.org/id/metropolitan-district-council/wolverhampton","IKEA ONLINE","202.50","Upper Pendeford Farm Childrens Home","5719","Equipment - Purchase","21/02/2017"
"Wolverhampton City Council","http://opendatacommunities.org/id/metropolitan-district-council/wolverhampton","WWW.CORAM.ORG.UK","18.83","Children & Family Contact Services","8398","Equipment - Purchase","21/02/2017"
"Wolverhampton City Council","http://opendatacommunities.org/id/metropolitan-district-council/wolverhampton","Amazon EU","134.40","SEN Early Years Team","5969","Equipment - Purchase","21/02/2017"
"Wolverhampton City Council","http://opendatacommunities.org/id/metropolitan-district-council/wolverhampton","MARKS&SPENCER SACAT","10.42","Mayoral Expenses","5411","Clothing / Uniforms","21/02/2017"
"Wolverhampton City Council","http://opendatacommunities.org/id/metropolitan-district-council/wolverhampton","LOYD WEDNESFIELD WOLVE","100.00","EIP Locality 8","6011","Grant Payments","20/02/2017"
"Wolverhampton City Council","http://opendatacommunities.org/id/metropolitan-district-council/wolverhampton","WISEPOPSCOM","40.69","City Direct","7372","Computing - Purchase of Software","20/02/2017"
"Wolverhampton City Council","http://opendatacommunities.org/id/metropolitan-district-council/wolverhampton","WWW.GADGETS-GALORE.CO.","491.75","LAC Education Team (LACE)","4812","Events","20/02/2017"
"Wolverhampton City Council","http://opendatacommunities.org/id/metropolitan-district-council/wolverhampton","ARGOS RETAIL GROUP","179.99","EIP Locality 6","5310","Equipment - Purchase","20/02/2017"
"Wolverhampton City Council","http://opendatacommunities.org/id/metropolitan-district-council/wolverhampton","Virgin Trains","37.00","Adoption and Residence Team & Allowances","4112","Public Transport","20/02/2017"
"Wolverhampton City Council","http://opendatacommunities.org/id/metropolitan-district-council/wolverhampton","IKEA LIMITED","175.83","Early Years & Universal Service","5712","Equipment - Purchase","20/02/2017"
"Wolverhampton City Council","http://opendatacommunities.org/id/metropolitan-district-council/wolverhampton","IKEA LIMITED","272.56","Early Years & Universal Service","5712","Equipment - Purchase","20/02/2017"
"Wolverhampton City Council","http://opendatacommunities.org/id/metropolitan-district-council/wolverhampton","AMAZON UK RETAIL AMAZO","29.99","SEN Early Years Team","5999","Equipment - Purchase","20/02/2017"
"Wolverhampton City Council","http://opendatacommunities.org/id/metropolitan-district-council/wolverhampton","AMAZON UK RETAIL AMAZO","29.99","SEN Early Years Team","5999","Equipment - Purchase","20/02/2017"
"Wolverhampton City Council","http://opendatacommunities.org/id/metropolitan-district-council/wolverhampton","AMAZON UK RETAIL AMAZO","29.99","SEN Early Years Team","5999","Equipment - Purchase","20/02/2017"
"Wolverhampton City Council","http://opendatacommunities.org/id/metropolitan-district-council/wolverhampton","AMAZON UK RETAIL AMAZO","29.99","SEN Early Years Team","5999","Equipment - Purchase","20/02/2017"
"Wolverhampton City Council","http://opendatacommunities.org/id/metropolitan-district-council/wolverhampton","AMAZON UK RETAIL AMAZO","29.99","SEN Early Years Team","5999","Equipment - Purchase","20/02/2017"
"Wolverhampton City Council","http://opendatacommunities.org/id/metropolitan-district-council/wolverhampton","AMAZON UK RETAIL AMAZO","29.99","SEN Early Years Team","5999","Equipment - Purchase","20/02/2017"
"Wolverhampton City Council","http://opendatacommunities.org/id/metropolitan-district-council/wolverhampton","AMAZON UK RETAIL AMAZO","29.99","SEN Early Years Team","5999","Equipment - Purchase","20/02/2017"
"Wolverhampton City Council","http://opendatacommunities.org/id/metropolitan-district-council/wolverhampton","SCREWFIX WOLVERHAM","19.41","Public Conveniences","5211","Materials","20/02/2017"
"Wolverhampton City Council","http://opendatacommunities.org/id/metropolitan-district-council/wolverhampton","Amazon UK Marketplace","51.98","Delivery & OCE Development","5942","Equipment - R & M","20/02/2017"
"Wolverhampton City Council","http://opendatacommunities.org/id/metropolitan-district-council/wolverhampton","CANVA.COM","0.83","Communications & Marketing - General","7221","Publications","20/02/2017"
"Wolverhampton City Council","http://opendatacommunities.org/id/metropolitan-district-council/wolverhampton","ASDA HOME SHOPPING","2.50","Upper Pendeford Farm Childrens Home","5411","Provisions (Not for resale)","20/02/2017"
"Wolverhampton City Council","http://opendatacommunities.org/id/metropolitan-district-council/wolverhampton","Amazon EU","29.99","SEN Early Years Team","5969","Equipment - Purchase","20/02/2017"
"Wolverhampton City Council","http://opendatacommunities.org/id/metropolitan-district-council/wolverhampton","G & M HALE (SUNDRIES)","64.65","Discretionary Fund","5992","Materials","20/02/2017"
"Wolverhampton City Council","http://opendatacommunities.org/id/metropolitan-district-council/wolverhampton","AMAZON UK RETAIL AMAZO","259.76","School Improvement","5999","Equipment - Purchase","20/02/2017"
"Wolverhampton City Council","http://opendatacommunities.org/id/metropolitan-district-council/wolverhampton","AMAZON UK RETAIL AMAZO","64.94","School Improvement","5999","Equipment - Purchase","20/02/2017"
"Wolverhampton City Council","http://opendatacommunities.org/id/metropolitan-district-council/wolverhampton","AUTOBASE (GB) LIMITED","70.37","Fleet Management","7538","Equipment - Purchase","20/02/2017"
"Wolverhampton City Council","http://opendatacommunities.org/id/metropolitan-district-council/wolverhampton","HOMEDICSGRO","114.49","Discretionary Fund","5047","Materials","20/02/2017"
"Wolverhampton City Council","http://opendatacommunities.org/id/metropolitan-district-council/wolverhampton","LIDL UK","21.51","Discretionary Fund","5411","Materials","20/02/2017"
"Wolverhampton City Council","http://opendatacommunities.org/id/metropolitan-district-council/wolverhampton","CUMMINGS BROTHERS LOCK","72.00","Central Costs","7399","Equipment - Purchase","20/02/2017"
"Wolverhampton City Council","http://opendatacommunities.org/id/metropolitan-district-council/wolverhampton","BARCLAYS BANK PLC","170.00","Headstart Phase 3","6011","Educ Trips, Holidays, Outings, Activity","20/02/2017"
"Wolverhampton City Council","http://opendatacommunities.org/id/metropolitan-district-council/wolverhampton","NATWEST BANK","300.00","Headstart Phase 3","6011","Educ Trips, Holidays, Outings, Activity","20/02/2017"
"Wolverhampton City Council","http://opendatacommunities.org/id/metropolitan-district-council/wolverhampton","JONES SKIP HIRE (WOLVE","175.10","CIN/CP S17 SW Unit - Area 3","7399","Refuse Collection","20/02/2017"
"Wolverhampton City Council","http://opendatacommunities.org/id/metropolitan-district-council/wolverhampton","ARGOS RETAIL GROUP","199.90","CIN/CP Social Work Unit - Area 2","5310","Equipment - Purchase","20/02/2017"
"Wolverhampton City Council","http://opendatacommunities.org/id/metropolitan-district-council/wolverhampton","Trainline","83.84","CIN/CP S17 SW Unit - Area 2","4112","Public Transport","20/02/2017"
"Wolverhampton City Council","http://opendatacommunities.org/id/metropolitan-district-council/wolverhampton","SCREWFIX DIRECT LT","44.98","Cleaning of Buildings - General","5211","Materials","20/02/2017"
"Wolverhampton City Council","http://opendatacommunities.org/id/metropolitan-district-council/wolverhampton","MAYFAIR CARPETS","333.33","EIP Locality 2","5712","Financial Assistance In Exceptional Circ","20/02/2017"
"Wolverhampton City Council","http://opendatacommunities.org/id/metropolitan-district-council/wolverhampton","LOYD MORR BILSTON","100.00","EIP Locality 2","6011","Financial Assistance In Exceptional Circ","20/02/2017"
"Wolverhampton City Council","http://opendatacommunities.org/id/metropolitan-district-council/wolverhampton","Virgin Trains","41.70","LAC Team","4112","Public Transport","20/02/2017"
"Wolverhampton City Council","http://opendatacommunities.org/id/metropolitan-district-council/wolverhampton","TESCO DELIVERY SAVER2","2.50","Towers Outdoor Education Centre","5968","Provisions (Not for resale)","20/02/2017"
"Wolverhampton City Council","http://opendatacommunities.org/id/metropolitan-district-council/wolverhampton","BLAS AR FWYD CYF","103.97","Towers Outdoor Education Centre","5812","Provisions (Not for resale)","20/02/2017"
"Wolverhampton City Council","http://opendatacommunities.org/id/metropolitan-district-council/wolverhampton","STERMAT CAR AND VAN HI","1212.50","Towers Outdoor Education Centre","5521","Hire of Vehicles","20/02/2017"
"Wolverhampton City Council","http://opendatacommunities.org/id/metropolitan-district-council/wolverhampton","POST OFFICE COUNTER","99.00","Education Catering - General Overheads","9402","Comms - Postage","20/02/2017"
"Wolverhampton City Council","http://opendatacommunities.org/id/metropolitan-district-council/wolverhampton","WIX.COM","186.26","Technical Support","5968","Subscriptions","20/02/2017"
"Wolverhampton City Council","http://opendatacommunities.org/id/metropolitan-district-council/wolverhampton","WORLDSTORES LTD","848.00","Technical Support","5719","Equipment - Purchase","20/02/2017"
"Wolverhampton City Council","http://opendatacommunities.org/id/metropolitan-district-council/wolverhampton","Trainline","31.37","Learning Technologies","4112","Public Transport","20/02/2017"
"Wolverhampton City Council","http://opendatacommunities.org/id/metropolitan-district-council/wolverhampton","Amazon UK Marketplace","268.55","Technical Support","5942","Furniture","20/02/2017"
"Wolverhampton City Council","http://opendatacommunities.org/id/metropolitan-district-council/wolverhampton","WWW.FRJONESANDSON.","34.90","Landscape","5261","Equipment - Purchase","20/02/2017"
"Wolverhampton City Council","http://opendatacommunities.org/id/metropolitan-district-council/wolverhampton","BRITANNIA","250.00","No Recourse to Public Funds - CIN/CP","7011","Accommodation Costs","20/02/2017"
"Wolverhampton City Council","http://opendatacommunities.org/id/metropolitan-district-council/wolverhampton","BRITANNIA WOLVERHA","174.17","No Recourse to Public Funds - CIN/CP","7011","Accommodation Costs","20/02/2017"
"Wolverhampton City Council","http://opendatacommunities.org/id/metropolitan-district-council/wolverhampton","AMZ K Direct","-159.96","Street Cleansing Overheads","5999","Equipment - Purchase","20/02/2017"
"Wolverhampton City Council","http://opendatacommunities.org/id/metropolitan-district-council/wolverhampton","LOYD MORR WILLENHALL","250.00","CIN/CP S17 SW Unit - Area 6","6011","Financial Assistance In Exceptional Circ","20/02/2017"
"Wolverhampton City Council","http://opendatacommunities.org/id/metropolitan-district-council/wolverhampton","WAITROSE 696","7.68","CIN/CP S17 SW Unit - Area 3","5411","Provisions (Not for resale)","20/02/2017"
"Wolverhampton City Council","http://opendatacommunities.org/id/metropolitan-district-council/wolverhampton","Amazon UK Marketplace","80.70","Technical Support","5942","Books","20/02/2017"
"Wolverhampton City Council","http://opendatacommunities.org/id/metropolitan-district-council/wolverhampton","AMAZON UK RETAIL AMAZO","10.65","Global Budgets","5999","Equipment - Purchase","20/02/2017"
"Wolverhampton City Council","http://opendatacommunities.org/id/metropolitan-district-council/wolverhampton","Amazon UK Marketplace","4.09","Global Budgets","5942","Books","20/02/2017"
"Wolverhampton City Council","http://opendatacommunities.org/id/metropolitan-district-council/wolverhampton","Amazon UK Marketplace","2.81","Global Budgets","5942","Books","20/02/2017"
"Wolverhampton City Council","http://opendatacommunities.org/id/metropolitan-district-council/wolverhampton","Amazon UK Marketplace","2.81","Global Budgets","5942","Books","20/02/2017"
"Wolverhampton City Council","http://opendatacommunities.org/id/metropolitan-district-council/wolverhampton","POST OFFICE COUNTER","223.00","LAC Team","9402","Financial Assistance In Exceptional Circ","20/02/2017"
"Wolverhampton City Council","http://opendatacommunities.org/id/metropolitan-district-council/wolverhampton","MARINA COURT HOTEL","80.00","LAC Team","7011","Services - Supplies & Services to users","20/02/2017"
"Wolverhampton City Council","http://opendatacommunities.org/id/metropolitan-district-council/wolverhampton","ASDA HOME SHOPPING","-0.29","Ernest Bold Court","5411","Provisions (Not for resale)","20/02/2017"
"Wolverhampton City Council","http://opendatacommunities.org/id/metropolitan-district-council/wolverhampton","ASDA HOME SHOPPING","98.86","Ernest Bold Court","5411","Provisions (Not for resale)","20/02/2017"
"Wolverhampton City Council","http://opendatacommunities.org/id/metropolitan-district-council/wolverhampton","TOOLSTATION LTD","18.13","Education Catering - General Overheads","5251","Equipment - Purchase","20/02/2017"
"Wolverhampton City Council","http://opendatacommunities.org/id/metropolitan-district-council/wolverhampton","REGISTRARS OFFICE","10.00","Legal Services","8299","Training Expenses","20/02/2017"
"Wolverhampton City Council","http://opendatacommunities.org/id/metropolitan-district-council/wolverhampton","AMAZON UK RETAIL AMAZO","29.99","SEN Early Years Team","5999","Equipment - Purchase","20/02/2017"
"Wolverhampton City Council","http://opendatacommunities.org/id/metropolitan-district-council/wolverhampton","BRITANNIA","59.17","No Recourse to Public Funds - CIN/CP","7011","Accommodation Costs","17/02/2017"
"Wolverhampton City Council","http://opendatacommunities.org/id/metropolitan-district-council/wolverhampton","Trainline","265.71","CIN/CP Social Work Unit - Area 8","4112","Public Transport","17/02/2017"
"Wolverhampton City Council","http://opendatacommunities.org/id/metropolitan-district-council/wolverhampton","BLOOMS MENSWEAR","91.67","Mayoral Expenses","5611","Clothing / Uniforms","17/02/2017"
"Wolverhampton City Council","http://opendatacommunities.org/id/metropolitan-district-council/wolverhampton","THIS & THAT NEWS","20.50","LAC Transitions Team","5411","Provisions (Not for resale)","17/02/2017"
"Wolverhampton City Council","http://opendatacommunities.org/id/metropolitan-district-council/wolverhampton","Amazon UK Marketplace","5.52","EIP Locality 5","5942","Books","17/02/2017"
"Wolverhampton City Council","http://opendatacommunities.org/id/metropolitan-district-council/wolverhampton","PAYPAL  DVLA SEARCH","400.00","Licensing - General","7538","Subscriptions","17/02/2017"
"Wolverhampton City Council","http://opendatacommunities.org/id/metropolitan-district-council/wolverhampton","ARGOS LTD","10.00","EIP Locality 8","5310","Grant Payments","17/02/2017"
"Wolverhampton City Council","http://opendatacommunities.org/id/metropolitan-district-council/wolverhampton","ARGOS LTD","134.89","EIP Locality 8","5310","Grant Payments","17/02/2017"
"Wolverhampton City Council","http://opendatacommunities.org/id/metropolitan-district-council/wolverhampton","NAMESCO","106.93","Communications & Marketing - General","4816","Computing - Purchase of Software","17/02/2017"
"Wolverhampton City Council","http://opendatacommunities.org/id/metropolitan-district-council/wolverhampton","WM MORRISONS","20.00","EIP Locality 6","5411","Provisions (Not for resale)","17/02/2017"
"Wolverhampton City Council","http://opendatacommunities.org/id/metropolitan-district-council/wolverhampton","AMAZON UK RETAIL AMAZO","34.68","EIP Locality 6","5999","Equipment - Purchase","17/02/2017"
"Wolverhampton City Council","http://opendatacommunities.org/id/metropolitan-district-council/wolverhampton","ASDA SUPERSTORE","150.75","EIP Locality 6","5411","Provisions (Not for resale)","17/02/2017"
"Wolverhampton City Council","http://opendatacommunities.org/id/metropolitan-district-council/wolverhampton","FSPRG.COM CJWDEV.CO.UK","712.25","Strategic ICTS (ICT Serv Budget)","5734","Computing - Purchase of Software","17/02/2017"
"Wolverhampton City Council","http://opendatacommunities.org/id/metropolitan-district-council/wolverhampton","Amazon UK Marketplace","24.20","Strategic ICTS (ICT Serv Budget)","5942","Computing - Purchase of Hardware","17/02/2017"
"Wolverhampton City Council","http://opendatacommunities.org/id/metropolitan-district-council/wolverhampton","Amazon UK Marketplace","16.64","Legal Services","5942","Stationery","17/02/2017"
"Wolverhampton City Council","http://opendatacommunities.org/id/metropolitan-district-council/wolverhampton","ARGOS RETAIL GROUP","15.92","WV Active Business Support","5310","Equipment - Purchase","17/02/2017"
"Wolverhampton City Council","http://opendatacommunities.org/id/metropolitan-district-council/wolverhampton","WWWBHANGRABLAZECOM","147.00","WV Active Business Support","7997","Training Expenses","17/02/2017"
"Wolverhampton City Council","http://opendatacommunities.org/id/metropolitan-district-council/wolverhampton","WM MORRISONS","20.74","Upper Pendeford Farm Childrens Home","5411","Provisions (Not for resale)","17/02/2017"
"Wolverhampton City Council","http://opendatacommunities.org/id/metropolitan-district-council/wolverhampton","ASDA HOME SHOPPING","74.46","Upper Pendeford Farm Childrens Home","5411","Provisions (Not for resale)","17/02/2017"
"Wolverhampton City Council","http://opendatacommunities.org/id/metropolitan-district-council/wolverhampton","LEWENNICK LODGE","9.17","Headstart Phase 3","7011","Subsistence","17/02/2017"
"Wolverhampton City Council","http://opendatacommunities.org/id/metropolitan-district-council/wolverhampton","PREMIER INN","12.50","Headstart Phase 3","3811","Subsistence","17/02/2017"
"Wolverhampton City Council","http://opendatacommunities.org/id/metropolitan-district-council/wolverhampton","PREMIER INN","12.50","Headstart Phase 3","3811","Subsistence","17/02/2017"
"Wolverhampton City Council","http://opendatacommunities.org/id/metropolitan-district-council/wolverhampton","WAX","16.58","Headstart Phase 3","5812","Subsistence","17/02/2017"
"Wolverhampton City Council","http://opendatacommunities.org/id/metropolitan-district-council/wolverhampton","HOBBY CRAFT LTD","5.00","Safeguarding Admin Resource","5970","Stationery","17/02/2017"
"Wolverhampton City Council","http://opendatacommunities.org/id/metropolitan-district-council/wolverhampton","B & Q 1243","12.60","Caretakers Community Centre","5211","R&M - Departmental planned (external)","17/02/2017"
"Wolverhampton City Council","http://opendatacommunities.org/id/metropolitan-district-council/wolverhampton","HSBC INVOICE FINAN","46.08","Private Sector Housing","6012","Services - Fees and Charges","17/02/2017"
"Wolverhampton City Council","http://opendatacommunities.org/id/metropolitan-district-council/wolverhampton","AMAZON UK RETAIL AMAZO","14.91","EIP Locality 1","5999","Equipment - Purchase","17/02/2017"
"Wolverhampton City Council","http://opendatacommunities.org/id/metropolitan-district-council/wolverhampton","ARGOS RETAIL GROUP","46.48","EIP Locality 1","5310","Equipment - Purchase","17/02/2017"
"Wolverhampton City Council","http://opendatacommunities.org/id/metropolitan-district-council/wolverhampton","Amazon UK Marketplace","11.99","EIP Locality 1","5942","Books","17/02/2017"
"Wolverhampton City Council","http://opendatacommunities.org/id/metropolitan-district-council/wolverhampton","COMMUNITYPLAYTHINGS UK","500.00","EIP Locality 2","5945","Equipment - Purchase","17/02/2017"
"Wolverhampton City Council","http://opendatacommunities.org/id/metropolitan-district-council/wolverhampton","AMAZON UK RETAIL AMAZO","25.78","SEN Sensory Inclusion","5999","Equipment - Purchase","17/02/2017"
"Wolverhampton City Council","http://opendatacommunities.org/id/metropolitan-district-council/wolverhampton","AMAZON UK RETAIL AMAZO","25.78","SEN Sensory Inclusion","5999","Equipment - Purchase","17/02/2017"
"Wolverhampton City Council","http://opendatacommunities.org/id/metropolitan-district-council/wolverhampton","Amazon UK Marketplace","26.90","Technical Support","5942","Furniture","17/02/2017"
"Wolverhampton City Council","http://opendatacommunities.org/id/metropolitan-district-council/wolverhampton","Amazon UK Marketplace","6.45","Global Budgets","5942","Books","17/02/2017"
"Wolverhampton City Council","http://opendatacommunities.org/id/metropolitan-district-council/wolverhampton","WAITROSE 696","19.20","EIP Locality 3","5411","Comms - Postage","17/02/2017"
"Wolverhampton City Council","http://opendatacommunities.org/id/metropolitan-district-council/wolverhampton","WAITROSE 696","15.77","EIP Locality 3","5411","Provisions (Not for resale)","17/02/2017"
"Wolverhampton City Council","http://opendatacommunities.org/id/metropolitan-district-council/wolverhampton","Amazon UK Marketplace","68.62","EIP Locality 3","5942","Equipment - Purchase","17/02/2017"
"Wolverhampton City Council","http://opendatacommunities.org/id/metropolitan-district-council/wolverhampton","Amazon UK Marketplace","43.62","EIP Locality 3","5942","Equipment - Purchase","17/02/2017"
"Wolverhampton City Council","http://opendatacommunities.org/id/metropolitan-district-council/wolverhampton","Virgin Trains","164.50","LAC Team","4112","Public Transport","17/02/2017"
"Wolverhampton City Council","http://opendatacommunities.org/id/metropolitan-district-council/wolverhampton","RONS FURNISHERS","82.50","Head of Service - CINCP","5713","Equipment - Purchase","17/02/2017"
"Wolverhampton City Council","http://opendatacommunities.org/id/metropolitan-district-council/wolverhampton","WEST COAST TRAINS","198.90","College of Further Education","4112","Public Transport","17/02/2017"
"Wolverhampton City Council","http://opendatacommunities.org/id/metropolitan-district-council/wolverhampton","POUNDLAND LTD 1463","4.17","Global Budgets","5310","Stationery","17/02/2017"
"Wolverhampton City Council","http://opendatacommunities.org/id/metropolitan-district-council/wolverhampton","CURRYS ONLINE","678.98","Upper Pendeford Farm Childrens Home","5732","Equipment - Purchase","17/02/2017"
"Wolverhampton City Council","http://opendatacommunities.org/id/metropolitan-district-council/wolverhampton","WWW ESPARES CO UK","-26.97","Revenues","5065","Equipment - R & M","17/02/2017"
"Wolverhampton City Council","http://opendatacommunities.org/id/metropolitan-district-council/wolverhampton","WWW ESPARES CO UK","-3.99","Revenues","5065","Equipment - R & M","17/02/2017"
"Wolverhampton City Council","http://opendatacommunities.org/id/metropolitan-district-council/wolverhampton","POST OFFICE COUNTER","6.45","Duke Street Bungalows","9402","Comms - Postage","16/02/2017"
"Wolverhampton City Council","http://opendatacommunities.org/id/metropolitan-district-council/wolverhampton","AMAZON UK RETAIL AMAZO","25.78","SEN Sensory Inclusion","5999","Equipment - Purchase","16/02/2017"
"Wolverhampton City Council","http://opendatacommunities.org/id/metropolitan-district-council/wolverhampton","AMAZON UK RETAIL AMAZO","25.78","SEN Sensory Inclusion","5999","Equipment - Purchase","16/02/2017"
"Wolverhampton City Council","http://opendatacommunities.org/id/metropolitan-district-council/wolverhampton","BETTWS MOTORS LIMITED","138.65","Towers Outdoor Education Centre","7538","Vehicle Maintenance - Repairs","16/02/2017"
"Wolverhampton City Council","http://opendatacommunities.org/id/metropolitan-district-council/wolverhampton","HSBC INVOICE FINAN","255.07","Towers Outdoor Education Centre","6012","Laundry Expenses","16/02/2017"
"Wolverhampton City Council","http://opendatacommunities.org/id/metropolitan-district-council/wolverhampton","HARLECH FOODSERVICE LT","143.57","Towers Outdoor Education Centre","5422","Catering","16/02/2017"
"Wolverhampton City Council","http://opendatacommunities.org/id/metropolitan-district-council/wolverhampton","WYNNSTAY ARGICULTURAL","118.33","Towers Outdoor Education Centre","5311","Equipment - Purchase","16/02/2017"
"Wolverhampton City Council","http://opendatacommunities.org/id/metropolitan-district-council/wolverhampton","C L JONES LIMITED","127.14","Towers Outdoor Education Centre","5211","Materials","16/02/2017"
"Wolverhampton City Council","http://opendatacommunities.org/id/metropolitan-district-council/wolverhampton","RICHARD WILLIAMS","43.97","Towers Outdoor Education Centre","5211","Materials","16/02/2017"
"Wolverhampton City Council","http://opendatacommunities.org/id/metropolitan-district-council/wolverhampton","HN NUTTALL LTD","533.51","Towers Outdoor Education Centre","5085","Equipment - Purchase","16/02/2017"
"Wolverhampton City Council","http://opendatacommunities.org/id/metropolitan-district-council/wolverhampton","Amazon UK Marketplace","37.45","Technical Support","5942","Books","16/02/2017"
"Wolverhampton City Council","http://opendatacommunities.org/id/metropolitan-district-council/wolverhampton","NOMINET UK","10.00","Technical Support","7379","Computing - Consumables","16/02/2017"
"Wolverhampton City Council","http://opendatacommunities.org/id/metropolitan-district-council/wolverhampton","TFM FARM & COUNTRY SUP","145.76","Northicote Farm","5399","Equipment - Purchase","16/02/2017"
"Wolverhampton City Council","http://opendatacommunities.org/id/metropolitan-district-council/wolverhampton","ARGOS RETAIL GROUP","83.22","LAC Transitions Team","5310","Client Allowances","16/02/2017"
"Wolverhampton City Council","http://opendatacommunities.org/id/metropolitan-district-council/wolverhampton","ARGOS RETAIL GROUP","27.49","LAC Transitions Team","5310","Client Allowances","16/02/2017"
"Wolverhampton City Council","http://opendatacommunities.org/id/metropolitan-district-council/wolverhampton","POUNDSTRETCHER 147","1.99","LAC Transitions Team","5714","Equipment - Purchase","16/02/2017"
"Wolverhampton City Council","http://opendatacommunities.org/id/metropolitan-district-council/wolverhampton","BLOOMS MENSWEAR","166.67","Mayoral Expenses","5611","Clothing / Uniforms","16/02/2017"
"Wolverhampton City Council","http://opendatacommunities.org/id/metropolitan-district-council/wolverhampton","BLOOMS MENSWEAR","166.67","Mayoral Expenses","5611","Clothing / Uniforms","16/02/2017"
"Wolverhampton City Council","http://opendatacommunities.org/id/metropolitan-district-council/wolverhampton","BLOOMS MENSWEAR","169.91","Mayoral Expenses","5611","Clothing / Uniforms","16/02/2017"
"Wolverhampton City Council","http://opendatacommunities.org/id/metropolitan-district-council/wolverhampton","B&M RETAIL LTD","22.88","LAC Transitions Team","5310","Accommodation Costs","16/02/2017"
"Wolverhampton City Council","http://opendatacommunities.org/id/metropolitan-district-council/wolverhampton","REGISTRARS OFFICE","20.00","Adoption and Residence Team & Allowances","8299","Services - Fees and Charges","16/02/2017"
"Wolverhampton City Council","http://opendatacommunities.org/id/metropolitan-district-council/wolverhampton","COOKSON PRECIOUS M","19.68","Contemporary Gallery","5094","Materials","16/02/2017"
"Wolverhampton City Council","http://opendatacommunities.org/id/metropolitan-district-council/wolverhampton","HIGHFIELD HOUSE HO","285.00","CIN/CP S17 SW Unit - Area 3","7011","No Recourse to Public Funds","16/02/2017"
"Wolverhampton City Council","http://opendatacommunities.org/id/metropolitan-district-council/wolverhampton","Amazon UK Marketplace","159.98","Strategic ICTS (ICT Serv Budget)","5942","Computing - Purchase of Hardware","16/02/2017"
"Wolverhampton City Council","http://opendatacommunities.org/id/metropolitan-district-council/wolverhampton","Amazon UK Marketplace","26.87","Parkfields Centre","5942","Equipment - Purchase","16/02/2017"
"Wolverhampton City Council","http://opendatacommunities.org/id/metropolitan-district-council/wolverhampton","CUMMINGS BROTHERS LOCK","24.17","Statutory Services (10RM)","7399","R&M - Departmental response (Internal)","16/02/2017"
"Wolverhampton City Council","http://opendatacommunities.org/id/metropolitan-district-council/wolverhampton","JOHNSTONES DEC CENTRE","17.76","Caretakers Community Centre","5231","Materials","16/02/2017"
"Wolverhampton City Council","http://opendatacommunities.org/id/metropolitan-district-council/wolverhampton","FACEBK K3YR9CAAR2","5.47","Communications & Marketing - General","7311","Marketing \ Non-staff advertising","16/02/2017"
"Wolverhampton City Council","http://opendatacommunities.org/id/metropolitan-district-council/wolverhampton","FACEBK J3YR9CAAR2","394.78","Communications & Marketing - General","7311","Marketing \ Non-staff advertising","16/02/2017"
"Wolverhampton City Council","http://opendatacommunities.org/id/metropolitan-district-council/wolverhampton","WM MORRISONS","24.86","Upper Pendeford Farm Childrens Home","5411","Provisions (Not for resale)","16/02/2017"
"Wolverhampton City Council","http://opendatacommunities.org/id/metropolitan-district-council/wolverhampton","AMAZON UK RETAIL AMAZO","69.96","Headstart Phase 3","5999","Books","16/02/2017"
"Wolverhampton City Council","http://opendatacommunities.org/id/metropolitan-district-council/wolverhampton","PREMIER INN","267.50","Headstart Phase 3","3811","Accommodation Costs","16/02/2017"
"Wolverhampton City Council","http://opendatacommunities.org/id/metropolitan-district-council/wolverhampton","WM MORRISON 024","200.00","CIN/CP S17 SW Unit - Area 2","5411","Provisions (Not for resale)","16/02/2017"
"Wolverhampton City Council","http://opendatacommunities.org/id/metropolitan-district-council/wolverhampton","Trainline","83.84","CIN/CP S17 SW Unit - Area 2","4112","Public Transport","16/02/2017"
"Wolverhampton City Council","http://opendatacommunities.org/id/metropolitan-district-council/wolverhampton","Amazon UK Marketplace","23.41","EIP Locality 1","5942","Equipment - Purchase","16/02/2017"
"Wolverhampton City Council","http://opendatacommunities.org/id/metropolitan-district-council/wolverhampton","Amazon UK Marketplace","21.94","Technical Support","5942","Books","16/02/2017"
"Wolverhampton City Council","http://opendatacommunities.org/id/metropolitan-district-council/wolverhampton","WWW.KITCHENWORKTOPSONL","735.00","Technical Support","5712","Equipment - Purchase","16/02/2017"
"Wolverhampton City Council","http://opendatacommunities.org/id/metropolitan-district-council/wolverhampton","Amazon UK Marketplace","2.81","Global Budgets","5942","Books","16/02/2017"
"Wolverhampton City Council","http://opendatacommunities.org/id/metropolitan-district-council/wolverhampton","Amazon UK Marketplace","2.81","Global Budgets","5942","Books","16/02/2017"
"Wolverhampton City Council","http://opendatacommunities.org/id/metropolitan-district-council/wolverhampton","Amazon UK Marketplace","2.81","Global Budgets","5942","Books","16/02/2017"
"Wolverhampton City Council","http://opendatacommunities.org/id/metropolitan-district-council/wolverhampton","WWW.ICO.GOV.UK","35.00","Members Expenses","9399","Services - Fees and Charges","16/02/2017"
"Wolverhampton City Council","http://opendatacommunities.org/id/metropolitan-district-council/wolverhampton","ALLPAY MOTO (CALLPAY/I","60.00","CIN/CP S17 SW Unit - Area 5","8398","Rent","16/02/2017"
"Wolverhampton City Council","http://opendatacommunities.org/id/metropolitan-district-council/wolverhampton","HOBBIES LTD","124.92","Education Business Partnership","5945","Equipment - Purchase","16/02/2017"
"Wolverhampton City Council","http://opendatacommunities.org/id/metropolitan-district-council/wolverhampton","ARGOS RETAIL GROUP","227.88","Community Enablement","5310","Equipment - Purchase","16/02/2017"
"Wolverhampton City Council","http://opendatacommunities.org/id/metropolitan-district-council/wolverhampton","LOOP11.COM","165.34","City Direct","7372","Computing - Purchase of Software","16/02/2017"
"Wolverhampton City Council","http://opendatacommunities.org/id/metropolitan-district-council/wolverhampton","SOMETHING DIFFEREN","5.00","City Direct","5399","Equipment - Purchase","16/02/2017"
"Wolverhampton City Council","http://opendatacommunities.org/id/metropolitan-district-council/wolverhampton","ARGOS RETAIL GROUP","133.32","Head of Projects and Works","5310","Equipment - Purchase","16/02/2017"
"Wolverhampton City Council","http://opendatacommunities.org/id/metropolitan-district-council/wolverhampton","WWWESCLEANINGCOUK","20.00","CIN/CP S17 SW Unit - Area 4","7349","Contract Cleaning","16/02/2017"
"Wolverhampton City Council","http://opendatacommunities.org/id/metropolitan-district-council/wolverhampton","BRITANNIA","71.00","No Recourse to Public Funds - CIN/CP","7011","Accommodation Costs","16/02/2017"
"Wolverhampton City Council","http://opendatacommunities.org/id/metropolitan-district-council/wolverhampton","Trainline","77.21","Head of Service - LAC","4112","Public Transport","15/02/2017"
"Wolverhampton City Council","http://opendatacommunities.org/id/metropolitan-district-council/wolverhampton","PAYPAL  THEROTA","279.41","Civic Halls Non Direct Management A/C","5735","Marketing \ Non-staff advertising","15/02/2017"
"Wolverhampton City Council","http://opendatacommunities.org/id/metropolitan-district-council/wolverhampton","NO 5 CHAMBERS LTD","210.00","Legal Services","8111","Services - Professional Fees","15/02/2017"
"Wolverhampton City Council","http://opendatacommunities.org/id/metropolitan-district-council/wolverhampton","WWW.SEVERNTRENTSEARCHE","348.00","Legal Services","4900","Electricity","15/02/2017"
"Wolverhampton City Council","http://opendatacommunities.org/id/metropolitan-district-council/wolverhampton","Amazon UK Marketplace","249.65","SEN Early Years Team","5942","Equipment - Purchase","15/02/2017"
"Wolverhampton City Council","http://opendatacommunities.org/id/metropolitan-district-council/wolverhampton","MARKS&SPENCER PLC SACA","2.63","Mayoral Expenses","5411","Hospitality","15/02/2017"
"Wolverhampton City Council","http://opendatacommunities.org/id/metropolitan-district-council/wolverhampton","WAYFAIR STORES LIM","147.96","CIN/CP S17 SW Unit - Area 5","5965","Equipment - Purchase","15/02/2017"
"Wolverhampton City Council","http://opendatacommunities.org/id/metropolitan-district-council/wolverhampton","WWW.BEDS4LESS.NET","199.98","CIN/CP S17 SW Unit - Area 5","5712","Equipment - Purchase","15/02/2017"
"Wolverhampton City Council","http://opendatacommunities.org/id/metropolitan-district-council/wolverhampton","WWW.FRJONESANDSON.","24.62","Landscape","5261","Equipment - Purchase","15/02/2017"
"Wolverhampton City Council","http://opendatacommunities.org/id/metropolitan-district-council/wolverhampton","B&M RETAIL LTD","10.82","LAC Transitions Team","5310","Client Allowances","15/02/2017"
"Wolverhampton City Council","http://opendatacommunities.org/id/metropolitan-district-council/wolverhampton","HOME BARGAINS","9.85","LAC Transitions Team","5251","Client Allowances","15/02/2017"
"Wolverhampton City Council","http://opendatacommunities.org/id/metropolitan-district-council/wolverhampton","PAST PRESENT AND FUTUR","104.17","LAC Transitions Team","5732","Client Allowances","15/02/2017"
"Wolverhampton City Council","http://opendatacommunities.org/id/metropolitan-district-council/wolverhampton","WAITROSE 696","14.12","Assistant Director - Public Health","5411","Provisions (Not for resale)","15/02/2017"
"Wolverhampton City Council","http://opendatacommunities.org/id/metropolitan-district-council/wolverhampton","Trainline","155.97","Headstart Phase 3","4112","Public Transport","15/02/2017"
"Wolverhampton City Council","http://opendatacommunities.org/id/metropolitan-district-council/wolverhampton","TESCO DIRECT","139.00","CIN/CP S17 SW Unit - Area 3","5999","Furniture","15/02/2017"
"Wolverhampton City Council","http://opendatacommunities.org/id/metropolitan-district-council/wolverhampton","Trainline","404.94","CIN/CP S17 SW Unit - Area 3","4112","Public Transport","15/02/2017"
"Wolverhampton City Council","http://opendatacommunities.org/id/metropolitan-district-council/wolverhampton","Trainline","207.06","CIN/CP S17 SW Unit - Area 3","4112","Public Transport","15/02/2017"
"Wolverhampton City Council","http://opendatacommunities.org/id/metropolitan-district-council/wolverhampton","Trainline","404.94","CIN/CP S17 SW Unit - Area 3","4112","Public Transport","15/02/2017"
"Wolverhampton City Council","http://opendatacommunities.org/id/metropolitan-district-council/wolverhampton","DC PAYMENTS","20.00","EIP Locality 2","6011","Financial Assistance In Exceptional Circ","15/02/2017"
"Wolverhampton City Council","http://opendatacommunities.org/id/metropolitan-district-council/wolverhampton","Amazon EU","25.78","SEN Sensory Inclusion","5969","Equipment - Purchase","15/02/2017"
"Wolverhampton City Council","http://opendatacommunities.org/id/metropolitan-district-council/wolverhampton","Amazon UK Marketplace","46.00","SEN Sensory Inclusion","5942","Equipment - Purchase","15/02/2017"
"Wolverhampton City Council","http://opendatacommunities.org/id/metropolitan-district-council/wolverhampton","TESCO STORES 5194","64.20","Towers Outdoor Education Centre","5411","Provisions (Not for resale)","15/02/2017"
"Wolverhampton City Council","http://opendatacommunities.org/id/metropolitan-district-council/wolverhampton","STERMAT CAR AND VAN HI","1492.52","Towers Outdoor Education Centre","5521","Hire of Vehicles","15/02/2017"
"Wolverhampton City Council","http://opendatacommunities.org/id/metropolitan-district-council/wolverhampton","WWW.BASI.ORG","77.00","Towers Outdoor Education Centre","8699","Equipment - Purchase","15/02/2017"
"Wolverhampton City Council","http://opendatacommunities.org/id/metropolitan-district-council/wolverhampton","POUNDSTRETCHER 147","13.52","LAC Transitions Team","5714","Client Allowances","15/02/2017"
"Wolverhampton City Council","http://opendatacommunities.org/id/metropolitan-district-council/wolverhampton","ROYAL CARPETS","258.33","LAC Transitions Team","5713","Client Allowances","15/02/2017"
"Wolverhampton City Council","http://opendatacommunities.org/id/metropolitan-district-council/wolverhampton","GODADDY COM EUROPE","-48.99","Register Office","4816","Computing - Purchase of Software","15/02/2017"
"Wolverhampton City Council","http://opendatacommunities.org/id/metropolitan-district-council/wolverhampton","Amazon UK Marketplace","27.99","EIP Locality 7","5942","Equipment - Purchase","15/02/2017"
"Wolverhampton City Council","http://opendatacommunities.org/id/metropolitan-district-council/wolverhampton","CONNECTIONFLOORINGLTD","53.68","Contemporary Gallery","5713","Materials","15/02/2017"
"Wolverhampton City Council","http://opendatacommunities.org/id/metropolitan-district-council/wolverhampton","Virgin Trains","9.50","Democratic Support","4112","Public Transport","15/02/2017"
"Wolverhampton City Council","http://opendatacommunities.org/id/metropolitan-district-council/wolverhampton","FUEL CARD SERVICES LTD","523.26","Towers Outdoor Education Centre","7399","Equipment - Purchase","15/02/2017"
"Wolverhampton City Council","http://opendatacommunities.org/id/metropolitan-district-council/wolverhampton","NORTHERN POTTERY LTD","28.56","Towers Outdoor Education Centre","5999","Fixtures and Fittings - Purchases","15/02/2017"
"Wolverhampton City Council","http://opendatacommunities.org/id/metropolitan-district-council/wolverhampton","CHEMSOL CYMRU LTD","173.15","Towers Outdoor Education Centre","5199","Fixtures and Fittings - Purchases","15/02/2017"
"Wolverhampton City Council","http://opendatacommunities.org/id/metropolitan-district-council/wolverhampton","Amazon UK Marketplace","14.95","Towers Outdoor Education Centre","5942","Books","15/02/2017"
"Wolverhampton City Council","http://opendatacommunities.org/id/metropolitan-district-council/wolverhampton","PERLINS SLADE LTD","189.17","Towers Outdoor Education Centre","6300","Equipment - Purchase","15/02/2017"
"Wolverhampton City Council","http://opendatacommunities.org/id/metropolitan-district-council/wolverhampton","AMAZON UK RETAIL AMAZO","243.26","Head Start (Digital Strand)","5999","Equipment - Purchase","15/02/2017"
"Wolverhampton City Council","http://opendatacommunities.org/id/metropolitan-district-council/wolverhampton","Amazon UK Marketplace","24.30","Technical Support","5942","Equipment - Purchase","15/02/2017"
"Wolverhampton City Council","http://opendatacommunities.org/id/metropolitan-district-council/wolverhampton","Amazon UK Marketplace","13.95","Head Start (Digital Strand)","5942","Equipment - Purchase","15/02/2017"
"Wolverhampton City Council","http://opendatacommunities.org/id/metropolitan-district-council/wolverhampton","Amazon UK Marketplace","12.99","Technical Support","5942","Equipment - Purchase","15/02/2017"
"Wolverhampton City Council","http://opendatacommunities.org/id/metropolitan-district-council/wolverhampton","Amazon UK Marketplace","104.95","Technical Support","5942","Books","15/02/2017"
"Wolverhampton City Council","http://opendatacommunities.org/id/metropolitan-district-council/wolverhampton","Amazon UK Marketplace","159.99","Head Start (Digital Strand)","5942","Books","15/02/2017"
"Wolverhampton City Council","http://opendatacommunities.org/id/metropolitan-district-council/wolverhampton","BRITANNIA","45.83","Head of Service - CINCP","7011","Services - Supplies & Services to users","15/02/2017"
"Wolverhampton City Council","http://opendatacommunities.org/id/metropolitan-district-council/wolverhampton","ARGOS RETAIL GROUP","130.78","EIP Locality 6","5310","Equipment - Purchase","15/02/2017"
"Wolverhampton City Council","http://opendatacommunities.org/id/metropolitan-district-council/wolverhampton","ARGOS RETAIL GROUP","41.66","EIP Locality 6","5310","Equipment - Purchase","15/02/2017"
"Wolverhampton City Council","http://opendatacommunities.org/id/metropolitan-district-council/wolverhampton","PAYPAL  UES LIMITED","6.50","EIP Locality 6","5621","Equipment - Purchase","15/02/2017"
"Wolverhampton City Council","http://opendatacommunities.org/id/metropolitan-district-council/wolverhampton","PAYPAL  WTONBIZFOR","3.00","Service Director City Economy","8398","Services - Supplies & Services to users","15/02/2017"
"Wolverhampton City Council","http://opendatacommunities.org/id/metropolitan-district-council/wolverhampton","EBUYER (UK) LTD","39.19","Strategic ICTS (ICT Serv Budget)","5722","Equipment - Purchase","15/02/2017"
"Wolverhampton City Council","http://opendatacommunities.org/id/metropolitan-district-council/wolverhampton","Amazon UK Marketplace","5.78","Statutory Services (10RM)","5942","R&M - Departmental planned (external)","15/02/2017"
"Wolverhampton City Council","http://opendatacommunities.org/id/metropolitan-district-council/wolverhampton","Amazon UK Marketplace","66.65","Parkfields Centre","5942","Equipment - Purchase","15/02/2017"
"Wolverhampton City Council","http://opendatacommunities.org/id/metropolitan-district-council/wolverhampton","CLONE-MEDIA.CO.UK","2232.24","City Marketing (Place)","5943","Stationery","15/02/2017"
"Wolverhampton City Council","http://opendatacommunities.org/id/metropolitan-district-council/wolverhampton","WEST COAST TRAINS","137.00","Mental Health Management","4112","Client Transport","15/02/2017"
"Wolverhampton City Council","http://opendatacommunities.org/id/metropolitan-district-council/wolverhampton","WEST COAST TRAINS","50.50","Mental Health Management","4112","Public Transport","15/02/2017"
"Wolverhampton City Council","http://opendatacommunities.org/id/metropolitan-district-council/wolverhampton","WEST COAST TRAINS","95.70","Mental Health Management","4112","Public Transport","15/02/2017"
"Wolverhampton City Council","http://opendatacommunities.org/id/metropolitan-district-council/wolverhampton","B & Q 1243","28.00","Education Catering - General Overheads","5211","Materials","14/02/2017"
"Wolverhampton City Council","http://opendatacommunities.org/id/metropolitan-district-council/wolverhampton","REGISTRARS OFFICE","-3.00","CIN/CP S17 SW Unit - Area 7","8299","Training Expenses","14/02/2017"
"Wolverhampton City Council","http://opendatacommunities.org/id/metropolitan-district-council/wolverhampton","REGISTRARS OFFICE","21.00","CIN/CP S17 SW Unit - Area 7","8299","Training Expenses","14/02/2017"
"Wolverhampton City Council","http://opendatacommunities.org/id/metropolitan-district-council/wolverhampton","PAYPAL  LANDSCAPEIN","216.03","Central Training","8398","Vehicle Maintenance - Repairs","14/02/2017"
"Wolverhampton City Council","http://opendatacommunities.org/id/metropolitan-district-council/wolverhampton","REGISTRARS OFFICE","10.00","Head of Service - CINCP","8299","Services - Professional Fees","14/02/2017"
"Wolverhampton City Council","http://opendatacommunities.org/id/metropolitan-district-council/wolverhampton","THE COAL AUTHORITY","450.00","Disposal Costs","9399","Services - Professional Fees","14/02/2017"
"Wolverhampton City Council","http://opendatacommunities.org/id/metropolitan-district-council/wolverhampton","GRANDTHEATRE.CO.UK","324.00","Upper Pendeford Farm Childrens Home","7922","Educ Trips, Holidays, Outings, Activity","14/02/2017"
"Wolverhampton City Council","http://opendatacommunities.org/id/metropolitan-district-council/wolverhampton","G & M HALE (SUNDRIES)","14.60","Creative Studies Delivery Area","5992","Materials for resale","14/02/2017"
"Wolverhampton City Council","http://opendatacommunities.org/id/metropolitan-district-council/wolverhampton","DUDLEY MET CNL ATP","8.09","Archives","7999","Books","14/02/2017"
"Wolverhampton City Council","http://opendatacommunities.org/id/metropolitan-district-council/wolverhampton","ASDA HOME SHOPPING","61.32","Education And Access","5411","Provisions (Not for resale)","14/02/2017"
"Wolverhampton City Council","http://opendatacommunities.org/id/metropolitan-district-council/wolverhampton","HOBBY CRAFT LTD","49.40","Education And Access","5970","Materials","14/02/2017"
"Wolverhampton City Council","http://opendatacommunities.org/id/metropolitan-district-council/wolverhampton","BRITANNIA","29.00","CIN/CP S17 SW Unit - Area 2","7011","Services - Supplies & Services to users","14/02/2017"
"Wolverhampton City Council","http://opendatacommunities.org/id/metropolitan-district-council/wolverhampton","ARGOS RETAIL GROUP","140.78","EIP Locality 2","5310","Financial Assistance In Exceptional Circ","14/02/2017"
"Wolverhampton City Council","http://opendatacommunities.org/id/metropolitan-district-council/wolverhampton","Trainline","19.23","SEN Special Education Admin","4112","Public Transport","14/02/2017"
"Wolverhampton City Council","http://opendatacommunities.org/id/metropolitan-district-council/wolverhampton","MOBI TECHNO LTD","170.00","Learning Technologies","4812","Comms - Mobile Telephones","14/02/2017"
"Wolverhampton City Council","http://opendatacommunities.org/id/metropolitan-district-council/wolverhampton","FSPRG.COM INFFUSE.COM","5.05","Technical Support","5734","Computing - Purchase of Software","14/02/2017"
"Wolverhampton City Council","http://opendatacommunities.org/id/metropolitan-district-council/wolverhampton","WWW PROJECTORSHOP24 CO","154.98","Learning Technologies","5732","Equipment - Purchase","14/02/2017"
"Wolverhampton City Council","http://opendatacommunities.org/id/metropolitan-district-council/wolverhampton","Amazon UK Marketplace","79.99","Head Start (Digital Strand)","5942","Equipment - Purchase","14/02/2017"
"Wolverhampton City Council","http://opendatacommunities.org/id/metropolitan-district-council/wolverhampton","Amazon UK Marketplace","329.99","Head Start (Digital Strand)","5942","Books","14/02/2017"
"Wolverhampton City Council","http://opendatacommunities.org/id/metropolitan-district-council/wolverhampton","ASDA HOME SHOPPING","-3.84","Ernest Bold Court","5411","Provisions (Not for resale)","14/02/2017"
"Wolverhampton City Council","http://opendatacommunities.org/id/metropolitan-district-council/wolverhampton","Trainline","163.00","Healthy Start to Life","4112","Public Transport","14/02/2017"
"Wolverhampton City Council","http://opendatacommunities.org/id/metropolitan-district-council/wolverhampton","Mews RosePark","69.00","Healthy Start to Life","7011","Accommodation Costs","14/02/2017"
"Wolverhampton City Council","http://opendatacommunities.org/id/metropolitan-district-council/wolverhampton","WM MORRISONS","45.08","EIP Locality 6","5411","Provisions (Not for resale)","14/02/2017"
"Wolverhampton City Council","http://opendatacommunities.org/id/metropolitan-district-council/wolverhampton","Cross Country Trains","89.30","Strategic ICTS (ICT Serv Budget)","4112","Public Transport","14/02/2017"
"Wolverhampton City Council","http://opendatacommunities.org/id/metropolitan-district-council/wolverhampton","LIDDELL ELECTRICAL DIS","16.75","Culwell Street Depot","5065","R&M - Departmental planned (external)","14/02/2017"
"Wolverhampton City Council","http://opendatacommunities.org/id/metropolitan-district-council/wolverhampton","CANVA.COM","0.82","Communications & Marketing - General","7221","Publications","14/02/2017"
"Wolverhampton City Council","http://opendatacommunities.org/id/metropolitan-district-council/wolverhampton","W M MORRISONS.COM","73.18","Discretionary Fund","5411","Materials","14/02/2017"
"Wolverhampton City Council","http://opendatacommunities.org/id/metropolitan-district-council/wolverhampton","CARD FACTORY","15.05","Public Health Support Costs","5947","Equipment - Purchase","14/02/2017"
"Wolverhampton City Council","http://opendatacommunities.org/id/metropolitan-district-council/wolverhampton","POUNDLAND LTD 1463","3.33","Public Health Support Costs","5310","Equipment - Purchase","14/02/2017"
"Wolverhampton City Council","http://opendatacommunities.org/id/metropolitan-district-council/wolverhampton","SAINSBURYS SACAT (2340","17.84","Public Health Support Costs","5411","Provisions (Not for resale)","14/02/2017"
"Wolverhampton City Council","http://opendatacommunities.org/id/metropolitan-district-council/wolverhampton","ASDA SUPERSTORE","44.62","LAC Transitions Team","5411","Client Allowances","14/02/2017"
"Wolverhampton City Council","http://opendatacommunities.org/id/metropolitan-district-council/wolverhampton","THE ISLAND HOUSE","55.00","Headstart Phase 3","5812","Subsistence","14/02/2017"
"Wolverhampton City Council","http://opendatacommunities.org/id/metropolitan-district-council/wolverhampton","X BRAND STOCK SOLUTION","204.97","LAC Transitions Team","4225","Client Allowances","14/02/2017"
"Wolverhampton City Council","http://opendatacommunities.org/id/metropolitan-district-council/wolverhampton","G & M HALE LTD","101.50","Discretionary Fund","5992","Materials","14/02/2017"
"Wolverhampton City Council","http://opendatacommunities.org/id/metropolitan-district-council/wolverhampton","G & M HALE LTD","60.60","Discretionary Fund","5992","Materials","14/02/2017"
"Wolverhampton City Council","http://opendatacommunities.org/id/metropolitan-district-council/wolverhampton","ASDA SUPERSTORE","23.00","CIN/CP S17 SW Unit - Area 5","5411","Provisions (Not for resale)","14/02/2017"
"Wolverhampton City Council","http://opendatacommunities.org/id/metropolitan-district-council/wolverhampton","ASDA SUPERSTORE","26.22","CIN/CP S17 SW Unit - Area 5","5411","Provisions (Not for resale)","14/02/2017"
"Wolverhampton City Council","http://opendatacommunities.org/id/metropolitan-district-council/wolverhampton","WEST COAST TRAINS","37.00","CIN/CP S17 SW Unit - Area 5","4112","Public Transport","14/02/2017"
"Wolverhampton City Council","http://opendatacommunities.org/id/metropolitan-district-council/wolverhampton","WWW ESPARES CO UK","30.96","Revenues","5065","Equipment - R & M","14/02/2017"
"Wolverhampton City Council","http://opendatacommunities.org/id/metropolitan-district-council/wolverhampton","POST OFFICE COUNTER","9.19","Street Cleansing Overheads","9402","Equipment - Purchase","14/02/2017"
"Wolverhampton City Council","http://opendatacommunities.org/id/metropolitan-district-council/wolverhampton","Amazon EU","36.65","Site Development Asset Management","5969","Equipment - Purchase","14/02/2017"
"Wolverhampton City Council","http://opendatacommunities.org/id/metropolitan-district-council/wolverhampton","MILLERS JEWELLERS","150.00","Mayoral Expenses","5944","Gratuities","14/02/2017"
"Wolverhampton City Council","http://opendatacommunities.org/id/metropolitan-district-council/wolverhampton","ASDA HOME SHOPPING","75.03","Ernest Bold Court","5411","Provisions (Not for resale)","14/02/2017"
"Wolverhampton City Council","http://opendatacommunities.org/id/metropolitan-district-council/wolverhampton","Virgin Trains","19.50","Mayoral Expenses","4112","Public Transport","14/02/2017"
"Wolverhampton City Council","http://opendatacommunities.org/id/metropolitan-district-council/wolverhampton","LICHFIELD INFLATAB","300.00","Artist Rooms","7399","Catering","14/02/2017"
"Wolverhampton City Council","http://opendatacommunities.org/id/metropolitan-district-council/wolverhampton","CITY TRIMS LIMITED","9.43","Education Catering - General Overheads","5039","Materials","14/02/2017"
"Wolverhampton City Council","http://opendatacommunities.org/id/metropolitan-district-council/wolverhampton","SG WORLD LTD","80.04","EIP Locality 8","5943","Stationery","13/02/2017"
"Wolverhampton City Council","http://opendatacommunities.org/id/metropolitan-district-council/wolverhampton","VWO.com","48.82","City Direct","7399","Equipment - Purchase","13/02/2017"
"Wolverhampton City Council","http://opendatacommunities.org/id/metropolitan-district-council/wolverhampton","ROYAL MAIL GROUP","1061.19","Business Manager - Place","9402","Comms - Postage","13/02/2017"
"Wolverhampton City Council","http://opendatacommunities.org/id/metropolitan-district-council/wolverhampton","KINGSWAYSOFT","678.71","Strategic ICTS (ICT Serv Budget)","5734","Computing - Purchase of Software","13/02/2017"
"Wolverhampton City Council","http://opendatacommunities.org/id/metropolitan-district-council/wolverhampton","Amazon Prime","7.99","Strategic ICTS (ICT Serv Budget)","5968","Subscriptions","13/02/2017"
"Wolverhampton City Council","http://opendatacommunities.org/id/metropolitan-district-council/wolverhampton","KRCS NOTTINGHAM","234.00","City Direct","5045","Computing - Purchase of Hardware","13/02/2017"
"Wolverhampton City Council","http://opendatacommunities.org/id/metropolitan-district-council/wolverhampton","ASDA HOME SHOPPING","190.44","Upper Pendeford Farm Childrens Home","5411","Provisions (Not for resale)","13/02/2017"
"Wolverhampton City Council","http://opendatacommunities.org/id/metropolitan-district-council/wolverhampton","WP-ZEN SOFTWARE LI","55.44","Service Wide","7372","Computing - Purchase of Software","13/02/2017"
"Wolverhampton City Council","http://opendatacommunities.org/id/metropolitan-district-council/wolverhampton","SCREWFIX DIRECT","44.85","Central Costs","5211","Materials","13/02/2017"
"Wolverhampton City Council","http://opendatacommunities.org/id/metropolitan-district-council/wolverhampton","KRCS NOTTINGHAM","200.25","Digital Transformation Programme","5045","Computing - Purchase of Hardware","13/02/2017"
"Wolverhampton City Council","http://opendatacommunities.org/id/metropolitan-district-council/wolverhampton","FACEBK M8BBVBW9R2","6.86","Communications & Marketing - General","7311","Marketing \ Non-staff advertising","13/02/2017"
"Wolverhampton City Council","http://opendatacommunities.org/id/metropolitan-district-council/wolverhampton","FACEBK C8BBVBW9R2","393.50","Communications & Marketing - General","7311","Marketing \ Non-staff advertising","13/02/2017"
"Wolverhampton City Council","http://opendatacommunities.org/id/metropolitan-district-council/wolverhampton","E01510300000000","100.00","Emergency Duty Team","6011","Financial Assistance In Exceptional Circ","13/02/2017"
"Wolverhampton City Council","http://opendatacommunities.org/id/metropolitan-district-council/wolverhampton","ASDA HOME SHOPPING","-0.37","Upper Pendeford Farm Childrens Home","5411","Provisions (Not for resale)","13/02/2017"
"Wolverhampton City Council","http://opendatacommunities.org/id/metropolitan-district-council/wolverhampton","ROYAL CARPETS","350.00","LAC Transitions Team","5713","Client Allowances","13/02/2017"
"Wolverhampton City Council","http://opendatacommunities.org/id/metropolitan-district-council/wolverhampton","WM MORRISON 063","5.00","Headstart Phase 3","5411","Provisions (Not for resale)","13/02/2017"
"Wolverhampton City Council","http://opendatacommunities.org/id/metropolitan-district-council/wolverhampton","NATWEST BANK","300.00","Headstart Phase 3","6011","Educ Trips, Holidays, Outings, Activity","13/02/2017"
"Wolverhampton City Council","http://opendatacommunities.org/id/metropolitan-district-council/wolverhampton","WM MORRISONS","2.84","Safeguarding Board - Adults","5411","Provisions (Not for resale)","13/02/2017"
"Wolverhampton City Council","http://opendatacommunities.org/id/metropolitan-district-council/wolverhampton","NOTEMACHINE","50.00","Court of Protection, Funerals Prot Prop","6011","Services - Supplies & Services to users","13/02/2017"
"Wolverhampton City Council","http://opendatacommunities.org/id/metropolitan-district-council/wolverhampton","ARGOS LTD","4.16","Hickman Avenue Depot","5310","R&M - Departmental planned (external)","13/02/2017"
"Wolverhampton City Council","http://opendatacommunities.org/id/metropolitan-district-council/wolverhampton","WICKES","67.18","Caretakers Community Centre","5211","R&M - Departmental planned (external)","13/02/2017"
"Wolverhampton City Council","http://opendatacommunities.org/id/metropolitan-district-council/wolverhampton","Trainline","83.84","CIN/CP S17 SW Unit - Area 2","4112","Public Transport","13/02/2017"
"Wolverhampton City Council","http://opendatacommunities.org/id/metropolitan-district-council/wolverhampton","ARGOS RETAIL GROUP","132.45","EIP Locality 2","5310","Financial Assistance In Exceptional Circ","13/02/2017"
"Wolverhampton City Council","http://opendatacommunities.org/id/metropolitan-district-council/wolverhampton","ARGOS RETAIL GROUP","194.92","EIP Locality 2","5310","Financial Assistance In Exceptional Circ","13/02/2017"
"Wolverhampton City Council","http://opendatacommunities.org/id/metropolitan-district-council/wolverhampton","OXLEY STATIONERS &","20.83","Community Enablement","5943","Printing","13/02/2017"
"Wolverhampton City Council","http://opendatacommunities.org/id/metropolitan-district-council/wolverhampton","POST OFFICE COUNTER","49.00","LAC Team","9402","Comms - Postage","13/02/2017"
"Wolverhampton City Council","http://opendatacommunities.org/id/metropolitan-district-council/wolverhampton","POST OFFICE COUNTER","9.75","LAC Team","9402","Comms - Postage","13/02/2017"
"Wolverhampton City Council","http://opendatacommunities.org/id/metropolitan-district-council/wolverhampton","Amazon UK Marketplace","18.22","Towers Outdoor Education Centre","5942","Fixtures and Fittings - Purchases","13/02/2017"
"Wolverhampton City Council","http://opendatacommunities.org/id/metropolitan-district-council/wolverhampton","123 REG R/T","13.98","Technical Support","5968","Subscriptions","13/02/2017"
"Wolverhampton City Council","http://opendatacommunities.org/id/metropolitan-district-council/wolverhampton","Amazon UK Marketplace","35.37","Technical Support","5942","Books","13/02/2017"
"Wolverhampton City Council","http://opendatacommunities.org/id/metropolitan-district-council/wolverhampton","ARGOS LTD","52.44","EIP Locality 3","5310","Equipment - Purchase","13/02/2017"
"Wolverhampton City Council","http://opendatacommunities.org/id/metropolitan-district-council/wolverhampton","LUL TICKET MACHINE","12.30","Art Gallery","4112","Public Transport","13/02/2017"
"Wolverhampton City Council","http://opendatacommunities.org/id/metropolitan-district-council/wolverhampton","Virgin Trains","40.00","Art Gallery","4112","Public Transport","13/02/2017"
"Wolverhampton City Council","http://opendatacommunities.org/id/metropolitan-district-council/wolverhampton","ASDA HOME SHOPPING","-1.94","Ernest Bold Court","5411","Provisions (Not for resale)","13/02/2017"
"Wolverhampton City Council","http://opendatacommunities.org/id/metropolitan-district-council/wolverhampton","ASDA HOME SHOPPING","97.78","Ernest Bold Court","5411","Provisions (Not for resale)","13/02/2017"
"Wolverhampton City Council","http://opendatacommunities.org/id/metropolitan-district-council/wolverhampton","BAUER RADIO","500.00","NHM Wildlife Photographer of the Year","2741","Marketing \ Non-staff advertising","13/02/2017"
"Wolverhampton City Council","http://opendatacommunities.org/id/metropolitan-district-council/wolverhampton","WWW.ADASS.ORG.UK","499.00","Workforce Development","8398","Training Expenses","13/02/2017"
"Wolverhampton City Council","http://opendatacommunities.org/id/metropolitan-district-council/wolverhampton","WWW.CARESHOP.CO.UK","19.42","Ernest Bold Court","5999","Equipment - Purchase","13/02/2017"
"Wolverhampton City Council","http://opendatacommunities.org/id/metropolitan-district-council/wolverhampton","WWW.SEVERNTRENTSEARCHE","290.00","Disposal Costs","4900","Services - Professional Fees","13/02/2017"
"Wolverhampton City Council","http://opendatacommunities.org/id/metropolitan-district-council/wolverhampton","WWW.SEVERNTRENTSEARCHE","290.00","Disposal Costs","4900","Services - Professional Fees","13/02/2017"
"Wolverhampton City Council","http://opendatacommunities.org/id/metropolitan-district-council/wolverhampton","WWW.SEVERNTRENTSEARCHE","290.00","Disposal Costs","4900","Services - Professional Fees","13/02/2017"
"Wolverhampton City Council","http://opendatacommunities.org/id/metropolitan-district-council/wolverhampton","WWW.WILMINGTON.CO.","120.00","Legal Services","8699","Training Expenses","13/02/2017"
"Wolverhampton City Council","http://opendatacommunities.org/id/metropolitan-district-council/wolverhampton","WWW.INFORMA.COM","22.39","SEN Early Years Team","2741","Publications","13/02/2017"
"Wolverhampton City Council","http://opendatacommunities.org/id/metropolitan-district-council/wolverhampton","SAX.CO.UK","299.17","Music Support Team","5733","Equipment - Purchase","13/02/2017"
"Wolverhampton City Council","http://opendatacommunities.org/id/metropolitan-district-council/wolverhampton","Amazon UK Marketplace","171.96","Street Cleansing Overheads","5942","Equipment - Purchase","13/02/2017"
"Wolverhampton City Council","http://opendatacommunities.org/id/metropolitan-district-council/wolverhampton","SAINSBURYS 2040","15.00","Duke Street Bungalows","5411","Provisions (Not for resale)","13/02/2017"
"Wolverhampton City Council","http://opendatacommunities.org/id/metropolitan-district-council/wolverhampton","Amazon UK Marketplace","565.58","Licensing - General","5942","Equipment - Purchase","13/02/2017"
"Wolverhampton City Council","http://opendatacommunities.org/id/metropolitan-district-council/wolverhampton","AMAZON UK RETAIL AMAZO","13.75","EIP Locality 7","5999","Equipment - Purchase","13/02/2017"
"Wolverhampton City Council","http://opendatacommunities.org/id/metropolitan-district-council/wolverhampton","BLITZ RECYCLING LTD","215.00","EIP Locality 7","7394","Equipment - Purchase","13/02/2017"
"Wolverhampton City Council","http://opendatacommunities.org/id/metropolitan-district-council/wolverhampton","Amazon EU","27.48","Back Scanning Team","5969","Equipment - Purchase","13/02/2017"
"Wolverhampton City Council","http://opendatacommunities.org/id/metropolitan-district-council/wolverhampton","LOYD WEDNESFIELD WOLVE","200.00","EIP Locality 8","6011","Grant Payments","10/02/2017"
"Wolverhampton City Council","http://opendatacommunities.org/id/metropolitan-district-council/wolverhampton","ARGOS RETAIL GROUP","140.78","EIP Locality 6","5310","Equipment - Purchase","10/02/2017"
"Wolverhampton City Council","http://opendatacommunities.org/id/metropolitan-district-council/wolverhampton","Trainline","329.97","Early Years & Universal Service","4112","Public Transport","10/02/2017"
"Wolverhampton City Council","http://opendatacommunities.org/id/metropolitan-district-council/wolverhampton","VUE ITCERTIFICATIONVUE","-135.60","Strategic ICTS (ICT Serv Budget)","8299","Training Expenses","10/02/2017"
"Wolverhampton City Council","http://opendatacommunities.org/id/metropolitan-district-council/wolverhampton","VENUE CATERING PAR","24.83","Corporate Procurement Unit","5811","Catering","10/02/2017"
"Wolverhampton City Council","http://opendatacommunities.org/id/metropolitan-district-council/wolverhampton","Virgin Trains","158.30","Audit Services","4112","Public Transport","10/02/2017"
"Wolverhampton City Council","http://opendatacommunities.org/id/metropolitan-district-council/wolverhampton","WOLVERHAMPTON CC","2.50","Headstart Phase 3","7523","Parking Fees","10/02/2017"
"Wolverhampton City Council","http://opendatacommunities.org/id/metropolitan-district-council/wolverhampton","MYPRINT247","24.04","Headstart Phase 3","2741","Printing","10/02/2017"
"Wolverhampton City Council","http://opendatacommunities.org/id/metropolitan-district-council/wolverhampton","ARGOS RETAIL GROUP","93.97","CIN/CP S17 SW Unit - Area 3","5310","Furniture","10/02/2017"
"Wolverhampton City Council","http://opendatacommunities.org/id/metropolitan-district-council/wolverhampton","ARGOS RETAIL GROUP","69.99","CIN/CP S17 SW Unit - Area 3","5310","Furniture","10/02/2017"
"Wolverhampton City Council","http://opendatacommunities.org/id/metropolitan-district-council/wolverhampton","TVLICENSING.CO.UK","145.50","Court of Protection, Funerals Prot Prop","7392","Services - Supplies & Services to users","10/02/2017"
"Wolverhampton City Council","http://opendatacommunities.org/id/metropolitan-district-council/wolverhampton","POST OFFICE COUNTER","153.60","Education Catering - General Overheads","9402","Comms - Postage","10/02/2017"
"Wolverhampton City Council","http://opendatacommunities.org/id/metropolitan-district-council/wolverhampton","Amazon EU","20.08","Mayoral Expenses","5969","Equipment - Purchase","10/02/2017"
"Wolverhampton City Council","http://opendatacommunities.org/id/metropolitan-district-council/wolverhampton","THE NEW BRIDGE GUEST H","377.00","CIN/CP S17 SW Unit - Area 5","7011","Accommodation Costs","10/02/2017"
"Wolverhampton City Council","http://opendatacommunities.org/id/metropolitan-district-council/wolverhampton","AMAZON UK RETAIL AMAZO","22.91","School Crossing Patrol","5999","Equipment - Purchase","10/02/2017"
"Wolverhampton City Council","http://opendatacommunities.org/id/metropolitan-district-council/wolverhampton","Wolverhampton Fair Tra","57.00","Civic Centre Catering","5411","Catering","10/02/2017"
"Wolverhampton City Council","http://opendatacommunities.org/id/metropolitan-district-council/wolverhampton","WWW.TRAIDCRAFT.CO.UK","39.75","Civic Centre Catering","5964","Catering","10/02/2017"
"Wolverhampton City Council","http://opendatacommunities.org/id/metropolitan-district-council/wolverhampton","Cross Country Trains","88.70","Macmillan Welfare Rights","4112","Public Transport","10/02/2017"
"Wolverhampton City Council","http://opendatacommunities.org/id/metropolitan-district-council/wolverhampton","ASDA SUPERSTORE","29.25","Mayoral Expenses","5411","Hospitality","10/02/2017"
"Wolverhampton City Council","http://opendatacommunities.org/id/metropolitan-district-council/wolverhampton","Amazon UK Marketplace","21.33","EIP Locality 7","5942","Equipment - Purchase","10/02/2017"
"Wolverhampton City Council","http://opendatacommunities.org/id/metropolitan-district-council/wolverhampton","Virgin Trains","7.70","Scrutiny & Transparency","4112","Public Transport","10/02/2017"
"Wolverhampton City Council","http://opendatacommunities.org/id/metropolitan-district-council/wolverhampton","NETWORK WEST MIDLANDS","44.00","CIN/CP S17 SW Unit - Area 4","9399","Services - Fees and Charges","10/02/2017"
"Wolverhampton City Council","http://opendatacommunities.org/id/metropolitan-district-council/wolverhampton","MBL SEMINARS","60.00","Legal Services","8299","Training Expenses","09/02/2017"
"Wolverhampton City Council","http://opendatacommunities.org/id/metropolitan-district-council/wolverhampton","GO CARZ","5.94","Legal Services","4121","Client Transport","09/02/2017"
"Wolverhampton City Council","http://opendatacommunities.org/id/metropolitan-district-council/wolverhampton","GO CARZ","5.68","Legal Services","4121","Client Transport","09/02/2017"
"Wolverhampton City Council","http://opendatacommunities.org/id/metropolitan-district-council/wolverhampton","HMCOURTS-SERVICE.G","20.00","Mental Health Assessment & Care Mgmt","9222","Services - Fees and Charges","09/02/2017"
"Wolverhampton City Council","http://opendatacommunities.org/id/metropolitan-district-council/wolverhampton","SNACKS AND SWEETS","19.17","Mayoral Expenses","5814","Hospitality","09/02/2017"
"Wolverhampton City Council","http://opendatacommunities.org/id/metropolitan-district-council/wolverhampton","POST OFFICE COUNTER","71.40","Childrens with Disabilities Team","9402","Comms - Postage","09/02/2017"
"Wolverhampton City Council","http://opendatacommunities.org/id/metropolitan-district-council/wolverhampton","Trainline","61.81","Adoption and Residence Team & Allowances","4112","Public Transport","09/02/2017"
"Wolverhampton City Council","http://opendatacommunities.org/id/metropolitan-district-council/wolverhampton","AMAZON UK RETAIL AMAZO","12.22","EIP Locality 7","5999","Equipment - Purchase","09/02/2017"
"Wolverhampton City Council","http://opendatacommunities.org/id/metropolitan-district-council/wolverhampton","AMAZON UK RETAIL AMAZO","32.79","EIP Locality 7","5999","Equipment - Purchase","09/02/2017"
"Wolverhampton City Council","http://opendatacommunities.org/id/metropolitan-district-council/wolverhampton","TICKETS08712200260","50.00","Information Governance Team","7922","Training Expenses","09/02/2017"
"Wolverhampton City Council","http://opendatacommunities.org/id/metropolitan-district-council/wolverhampton","Amazon UK Marketplace","9.14","Telecare","5942","Comms - Mobile Telephones","09/02/2017"
"Wolverhampton City Council","http://opendatacommunities.org/id/metropolitan-district-council/wolverhampton","JAMES LISTER & SONS LT","18.51","Cleaning of Buildings - General","5085","Equipment - Purchase","09/02/2017"
"Wolverhampton City Council","http://opendatacommunities.org/id/metropolitan-district-council/wolverhampton","ARGOS DIRECT","-20.82","EIP Locality 2","5964","Equipment - Purchase","09/02/2017"
"Wolverhampton City Council","http://opendatacommunities.org/id/metropolitan-district-council/wolverhampton","WM MORRISON 024","5.00","EIP Locality 2","5411","Provisions (Not for resale)","09/02/2017"
"Wolverhampton City Council","http://opendatacommunities.org/id/metropolitan-district-council/wolverhampton","THE NEW BRIDGE GUEST H","25.00","Referral Team CIN - S17","7011","Accommodation Costs","09/02/2017"
"Wolverhampton City Council","http://opendatacommunities.org/id/metropolitan-district-council/wolverhampton","TESCO STORES 5194","122.12","Towers Outdoor Education Centre","5411","Provisions (Not for resale)","09/02/2017"
"Wolverhampton City Council","http://opendatacommunities.org/id/metropolitan-district-council/wolverhampton","COTSWOLD OUTDOOR-MAIL","188.00","Towers Outdoor Education Centre","5691","Equipment - Purchase","09/02/2017"
"Wolverhampton City Council","http://opendatacommunities.org/id/metropolitan-district-council/wolverhampton","ARLEIGH","79.20","Education Catering - General Overheads","5551","Vehicle Maintenance - Repairs","09/02/2017"
"Wolverhampton City Council","http://opendatacommunities.org/id/metropolitan-district-council/wolverhampton","WICKES","41.65","Play General","5211","Materials","09/02/2017"
"Wolverhampton City Council","http://opendatacommunities.org/id/metropolitan-district-council/wolverhampton","CARVER/WOLVERHAMPTON/L","32.82","Play General","5211","Materials","09/02/2017"
"Wolverhampton City Council","http://opendatacommunities.org/id/metropolitan-district-council/wolverhampton","WOLVERHAMPTON TROPHY C","12.50","Global Budgets","5999","Stationery","09/02/2017"
"Wolverhampton City Council","http://opendatacommunities.org/id/metropolitan-district-council/wolverhampton","Trainline","197.78","Strategic Director Place","4112","Public Transport","09/02/2017"
"Wolverhampton City Council","http://opendatacommunities.org/id/metropolitan-district-council/wolverhampton","GO OUTDOORS","4.16","LAC Transitions Team","5941","Client Allowances","09/02/2017"
"Wolverhampton City Council","http://opendatacommunities.org/id/metropolitan-district-council/wolverhampton","Trainline","58.91","Youth Offending Team","4112","Public Transport","09/02/2017"
"Wolverhampton City Council","http://opendatacommunities.org/id/metropolitan-district-council/wolverhampton","Amazon UK Marketplace","8.33","EIP Locality 4","5942","Equipment - Purchase","09/02/2017"
"Wolverhampton City Council","http://opendatacommunities.org/id/metropolitan-district-council/wolverhampton","REGISTRARS OFFICE","10.00","IMPACT","8299","Financial Assistance In Exceptional Circ","09/02/2017"
"Wolverhampton City Council","http://opendatacommunities.org/id/metropolitan-district-council/wolverhampton","THE POST OFFICE","220.00","IMPACT","9402","Financial Assistance In Exceptional Circ","09/02/2017"
"Wolverhampton City Council","http://opendatacommunities.org/id/metropolitan-district-council/wolverhampton","SCREWFIX DIRECT","171.57","Strategic ICTS (ICT Serv Budget)","5211","Computing - Purchase of Hardware","09/02/2017"
"Wolverhampton City Council","http://opendatacommunities.org/id/metropolitan-district-council/wolverhampton","ARGOS RETAIL GROUP","208.32","Archives","5310","Computing - Purchase of Hardware","09/02/2017"
"Wolverhampton City Council","http://opendatacommunities.org/id/metropolitan-district-council/wolverhampton","Virgin Trains","102.70","Planning","4112","Public Transport","09/02/2017"
"Wolverhampton City Council","http://opendatacommunities.org/id/metropolitan-district-council/wolverhampton","WWW.PARTYDELIGHTS.CO.U","71.92","Artist Rooms","5947","Equipment - Purchase","09/02/2017"
"Wolverhampton City Council","http://opendatacommunities.org/id/metropolitan-district-council/wolverhampton","ARGOS RETAIL GROUP","26.61","EIP Locality 6","5310","Equipment - Purchase","08/02/2017"
"Wolverhampton City Council","http://opendatacommunities.org/id/metropolitan-district-council/wolverhampton","WM MORRISONS","36.00","EIP Locality 6","5411","Provisions (Not for resale)","08/02/2017"
"Wolverhampton City Council","http://opendatacommunities.org/id/metropolitan-district-council/wolverhampton","REGISTRARS OFFICE","10.00","IMPACT","8299","Financial Assistance In Exceptional Circ","08/02/2017"
"Wolverhampton City Council","http://opendatacommunities.org/id/metropolitan-district-council/wolverhampton","E01510300000000","40.00","Emergency Duty Team","6011","Financial Assistance In Exceptional Circ","08/02/2017"
"Wolverhampton City Council","http://opendatacommunities.org/id/metropolitan-district-council/wolverhampton","ASDA HOME SHOPPING","-0.92","Upper Pendeford Farm Childrens Home","5411","Provisions (Not for resale)","08/02/2017"
"Wolverhampton City Council","http://opendatacommunities.org/id/metropolitan-district-council/wolverhampton","ASDA HOME SHOPPING","264.54","Upper Pendeford Farm Childrens Home","5411","Provisions (Not for resale)","08/02/2017"
"Wolverhampton City Council","http://opendatacommunities.org/id/metropolitan-district-council/wolverhampton","ARGOS RETAIL GROUP","89.12","LAC Transitions Team","5310","Client Allowances","08/02/2017"
"Wolverhampton City Council","http://opendatacommunities.org/id/metropolitan-district-council/wolverhampton","ARGOS RETAIL GROUP","61.66","LAC Transitions Team","5310","Client Allowances","08/02/2017"
"Wolverhampton City Council","http://opendatacommunities.org/id/metropolitan-district-council/wolverhampton","Trainline","71.25","Ambrosia Project","4112","Public Transport","08/02/2017"
"Wolverhampton City Council","http://opendatacommunities.org/id/metropolitan-district-council/wolverhampton","Amazon UK Marketplace","-10.00","Headstart Wolverhampton","5999","Equipment - Purchase","08/02/2017"
"Wolverhampton City Council","http://opendatacommunities.org/id/metropolitan-district-council/wolverhampton","WOLVERHAMPTON CC","10.42","Headstart Phase 3","7523","Parking Fees","08/02/2017"
"Wolverhampton City Council","http://opendatacommunities.org/id/metropolitan-district-council/wolverhampton","Amazon UK Marketplace","114.75","CIN/CP S17 SW Unit - Area 3","5942","Books","08/02/2017"
"Wolverhampton City Council","http://opendatacommunities.org/id/metropolitan-district-council/wolverhampton","ARGOS LTD","66.66","Court of Protection, Funerals Prot Prop","5310","Equipment - Purchase","08/02/2017"
"Wolverhampton City Council","http://opendatacommunities.org/id/metropolitan-district-council/wolverhampton","Virgin Trains","60.30","Strategic Asset Management - General","4112","Public Transport","08/02/2017"
"Wolverhampton City Council","http://opendatacommunities.org/id/metropolitan-district-council/wolverhampton","ARGOS RETAIL GROUP","105.78","EIP Locality 6","5310","Equipment - Purchase","08/02/2017"
"Wolverhampton City Council","http://opendatacommunities.org/id/metropolitan-district-council/wolverhampton","ARGOS RETAIL GROUP","155.77","EIP Locality 6","5310","Equipment - Purchase","08/02/2017"
"Wolverhampton City Council","http://opendatacommunities.org/id/metropolitan-district-council/wolverhampton","ARGOS RETAIL GROUP","24.99","EIP Locality 6","5310","Equipment - Purchase","08/02/2017"
"Wolverhampton City Council","http://opendatacommunities.org/id/metropolitan-district-council/wolverhampton","ARGOS RETAIL GROUP","35.82","EIP Locality 6","5310","Equipment - Purchase","08/02/2017"
"Wolverhampton City Council","http://opendatacommunities.org/id/metropolitan-district-council/wolverhampton","J P LENNARD LTD","36.00","Central Baths","5941","Equipment - Purchase","08/02/2017"
"Wolverhampton City Council","http://opendatacommunities.org/id/metropolitan-district-council/wolverhampton","TIPPERS WOLVERHAMPTON","25.49","Cleaning of Buildings - General","5072","Equipment - Purchase","08/02/2017"
"Wolverhampton City Council","http://opendatacommunities.org/id/metropolitan-district-council/wolverhampton","HMCOURTS-SERVICE.G","150.00","Private Sector Housing","9222","Services - Fees and Charges","08/02/2017"
"Wolverhampton City Council","http://opendatacommunities.org/id/metropolitan-district-council/wolverhampton","ARGOS RETAIL GROUP","250.52","EIP Locality 2","5310","Financial Assistance In Exceptional Circ","08/02/2017"
"Wolverhampton City Council","http://opendatacommunities.org/id/metropolitan-district-council/wolverhampton","ARGOS RETAIL GROUP","144.34","EIP Locality 2","5310","Financial Assistance In Exceptional Circ","08/02/2017"
"Wolverhampton City Council","http://opendatacommunities.org/id/metropolitan-district-council/wolverhampton","Amazon UK Marketplace","20.97","SEN Sensory Inclusion","5942","Equipment - Purchase","08/02/2017"
"Wolverhampton City Council","http://opendatacommunities.org/id/metropolitan-district-council/wolverhampton","TWINKL LTD","37.49","SEN Sensory Inclusion","8699","Equipment - Purchase","08/02/2017"
"Wolverhampton City Council","http://opendatacommunities.org/id/metropolitan-district-council/wolverhampton","AMAZON UK RETAIL AMAZO","12.99","Global Budgets","5999","Books","08/02/2017"
"Wolverhampton City Council","http://opendatacommunities.org/id/metropolitan-district-council/wolverhampton","Trainline","113.73","Inclusion Support","4112","Public Transport","08/02/2017"
"Wolverhampton City Council","http://opendatacommunities.org/id/metropolitan-district-council/wolverhampton","B & Q 1243","16.15","Ernest Bold Court","5211","Equipment - R & M","08/02/2017"
"Wolverhampton City Council","http://opendatacommunities.org/id/metropolitan-district-council/wolverhampton","POST OFFICE COUNTER","2.06","Head of Service - CINCP","9402","Comms - Postage","08/02/2017"
"Wolverhampton City Council","http://opendatacommunities.org/id/metropolitan-district-council/wolverhampton","CARESHOP","144.96","Specialist Support Service - North","5999","Cleaning Supplies and Materials","08/02/2017"
"Wolverhampton City Council","http://opendatacommunities.org/id/metropolitan-district-council/wolverhampton","EE LIMITED R501","30.00","School Crossing Patrol","4812","Comms - Mobile Telephones","08/02/2017"
"Wolverhampton City Council","http://opendatacommunities.org/id/metropolitan-district-council/wolverhampton","ARGOS LTD","69.48","Car Parks Operational Staff","5310","Equipment - Purchase","08/02/2017"
"Wolverhampton City Council","http://opendatacommunities.org/id/metropolitan-district-council/wolverhampton","SAINSBURYS","100.00","Duke Street Bungalows","6011","Public Transport","08/02/2017"
"Wolverhampton City Council","http://opendatacommunities.org/id/metropolitan-district-council/wolverhampton","SAINSBURYS","150.00","Duke Street Bungalows","6011","Services - Supplies & Services to users","08/02/2017"
"Wolverhampton City Council","http://opendatacommunities.org/id/metropolitan-district-council/wolverhampton","RIBA ENTERPRISES LTD","42.88","Legal Services","5942","Books","08/02/2017"
"Wolverhampton City Council","http://opendatacommunities.org/id/metropolitan-district-council/wolverhampton","WWW.SEVERNTRENTSEARCHE","290.00","Disposal Costs","4900","Services - Professional Fees","08/02/2017"
"Wolverhampton City Council","http://opendatacommunities.org/id/metropolitan-district-council/wolverhampton","WWW.SEVERNTRENTSEARCHE","290.00","Disposal Costs","4900","Services - Professional Fees","08/02/2017"
"Wolverhampton City Council","http://opendatacommunities.org/id/metropolitan-district-council/wolverhampton","WWW.SEVERNTRENTSEARCHE","290.00","Disposal Costs","4900","Services - Professional Fees","08/02/2017"
"Wolverhampton City Council","http://opendatacommunities.org/id/metropolitan-district-council/wolverhampton","WWW.SEVERNTRENTSEARCHE","290.00","Disposal Costs","4900","Services - Professional Fees","08/02/2017"
"Wolverhampton City Council","http://opendatacommunities.org/id/metropolitan-district-council/wolverhampton","E.ON ENERGY SOLUTIONS","200.00","CIN/CP S17 SW Unit - Area 5","4900","Electricity","08/02/2017"
"Wolverhampton City Council","http://opendatacommunities.org/id/metropolitan-district-council/wolverhampton","REGISTRARS OFFICE","11.00","Childrens with Disabilities Team","8299","Services - Fees and Charges","08/02/2017"
"Wolverhampton City Council","http://opendatacommunities.org/id/metropolitan-district-council/wolverhampton","BLOOMS MENSWEAR","175.00","Mayoral Expenses","5611","Hospitality","08/02/2017"
"Wolverhampton City Council","http://opendatacommunities.org/id/metropolitan-district-council/wolverhampton","RAMADA OLDBURY","-20.40","Adoption and Residence Team & Allowances","7011","Accommodation Costs","08/02/2017"
"Wolverhampton City Council","http://opendatacommunities.org/id/metropolitan-district-council/wolverhampton","Trainline","228.99","Adoption and Residence Team & Allowances","4112","Public Transport","08/02/2017"
"Wolverhampton City Council","http://opendatacommunities.org/id/metropolitan-district-council/wolverhampton","BARCLAYS BANK PLC","250.00","CIN/CP S17 SW Unit - Area 6","6011","Financial Assistance In Exceptional Circ","08/02/2017"
"Wolverhampton City Council","http://opendatacommunities.org/id/metropolitan-district-council/wolverhampton","NOTEMACHINE","100.00","EIP Locality 7","6011","Grant Payments","08/02/2017"
"Wolverhampton City Council","http://opendatacommunities.org/id/metropolitan-district-council/wolverhampton","POST OFFICE COUNTER","110.00","EIP Locality 7","9402","Comms - Postage","08/02/2017"
"Wolverhampton City Council","http://opendatacommunities.org/id/metropolitan-district-council/wolverhampton","HIGHFIELD HOUSE HO","285.00","No Recourse to Public Funds - CIN/CP","7011","Services - Supplies & Services to users","08/02/2017"
"Wolverhampton City Council","http://opendatacommunities.org/id/metropolitan-district-council/wolverhampton","Virgin Trains","118.55","Members Expenses","4112","Public Transport","08/02/2017"
"Wolverhampton City Council","http://opendatacommunities.org/id/metropolitan-district-council/wolverhampton","ARGOS RETAIL GROUP","42.32","EIP Locality 4","5310","Grant Payments","07/02/2017"
"Wolverhampton City Council","http://opendatacommunities.org/id/metropolitan-district-council/wolverhampton","ARGOS RETAIL GROUP","79.32","EIP Locality 4","5310","Grant Payments","07/02/2017"
"Wolverhampton City Council","http://opendatacommunities.org/id/metropolitan-district-council/wolverhampton","WILKO.COM","20.00","EIP Locality 4","5722","Grant Payments","07/02/2017"
"Wolverhampton City Council","http://opendatacommunities.org/id/metropolitan-district-council/wolverhampton","LOVE2SHOP.CO.UK","454.25","IMPACT","8641","Clothing / Uniforms","07/02/2017"
"Wolverhampton City Council","http://opendatacommunities.org/id/metropolitan-district-council/wolverhampton","THE CARPHONE WAREH","38.97","LAC Transitions Team","4812","Client Allowances","07/02/2017"
"Wolverhampton City Council","http://opendatacommunities.org/id/metropolitan-district-council/wolverhampton","W M MORRISONS.COM","152.08","Discretionary Fund","5411","Materials","07/02/2017"
"Wolverhampton City Council","http://opendatacommunities.org/id/metropolitan-district-council/wolverhampton","Amazon EU","18.53","Expenditure","5969","Equipment - Purchase","07/02/2017"
"Wolverhampton City Council","http://opendatacommunities.org/id/metropolitan-district-council/wolverhampton","YOUNG`S SHOE REPAIRS L","11.80","Wolverhampton Indoor and Open Market","7251","Fixtures and Fittings - R&M","07/02/2017"
"Wolverhampton City Council","http://opendatacommunities.org/id/metropolitan-district-council/wolverhampton","CARVER/WOLVERHAMPTON/L","24.67","Cleaning of Buildings - General","5211","Materials","07/02/2017"
"Wolverhampton City Council","http://opendatacommunities.org/id/metropolitan-district-council/wolverhampton","Cross Country Trains","68.70","Transportation General","4112","Public Transport","07/02/2017"
"Wolverhampton City Council","http://opendatacommunities.org/id/metropolitan-district-council/wolverhampton","MARKS&SPENCER PLC SACA","2.00","Children & Young People Support Costs","5411","Provisions (Not for resale)","07/02/2017"
"Wolverhampton City Council","http://opendatacommunities.org/id/metropolitan-district-council/wolverhampton","ITUNES.COM/BILL","299.99","Learning Technologies","5735","Computing - Purchase of Software","07/02/2017"
"Wolverhampton City Council","http://opendatacommunities.org/id/metropolitan-district-council/wolverhampton","123 REG R/T","27.96","Technical Support","5968","Subscriptions","07/02/2017"
"Wolverhampton City Council","http://opendatacommunities.org/id/metropolitan-district-council/wolverhampton","Amazon UK Marketplace","79.92","Technical Support","5942","Equipment - Purchase","07/02/2017"
"Wolverhampton City Council","http://opendatacommunities.org/id/metropolitan-district-council/wolverhampton","Amazon UK Marketplace","2.81","Global Budgets","5942","Books","07/02/2017"
"Wolverhampton City Council","http://opendatacommunities.org/id/metropolitan-district-council/wolverhampton","ARGOS LTD","38.98","LAC Transitions Team","5310","Client Allowances","07/02/2017"
"Wolverhampton City Council","http://opendatacommunities.org/id/metropolitan-district-council/wolverhampton","ASDA HOME SHOPPING","-0.41","Ernest Bold Court","5411","Provisions (Not for resale)","07/02/2017"
"Wolverhampton City Council","http://opendatacommunities.org/id/metropolitan-district-council/wolverhampton","ASDA HOME SHOPPING","78.76","Ernest Bold Court","5411","Provisions (Not for resale)","07/02/2017"
"Wolverhampton City Council","http://opendatacommunities.org/id/metropolitan-district-council/wolverhampton","75 TAXIS LIMITED","140.00","CIN/CP S17 SW Unit - Area 5","4121","Client Transport","07/02/2017"
"Wolverhampton City Council","http://opendatacommunities.org/id/metropolitan-district-council/wolverhampton","THE COAL AUTHORITY","630.00","Disposal Costs","9399","Services - Professional Fees","07/02/2017"
"Wolverhampton City Council","http://opendatacommunities.org/id/metropolitan-district-council/wolverhampton","THE POST OFFICE","367.90","Legal Services","9402","Comms - Postage","07/02/2017"
"Wolverhampton City Council","http://opendatacommunities.org/id/metropolitan-district-council/wolverhampton","G & M HALE (SUNDRIES)","17.00","Discretionary Fund","5992","Materials","07/02/2017"
"Wolverhampton City Council","http://opendatacommunities.org/id/metropolitan-district-council/wolverhampton","G & M HALE (SUNDRIES)","23.55","Creative Studies Delivery Area","5992","Materials for resale","07/02/2017"
"Wolverhampton City Council","http://opendatacommunities.org/id/metropolitan-district-council/wolverhampton","G & M HALE LTD","41.00","Discretionary Fund","5992","Materials","07/02/2017"
"Wolverhampton City Council","http://opendatacommunities.org/id/metropolitan-district-council/wolverhampton","G & M HALE LTD","44.50","Creative Studies Delivery Area","5992","Materials for resale","07/02/2017"
"Wolverhampton City Council","http://opendatacommunities.org/id/metropolitan-district-council/wolverhampton","G & M HALE LTD","57.30","Discretionary Fund","5992","Materials","07/02/2017"
"Wolverhampton City Council","http://opendatacommunities.org/id/metropolitan-district-council/wolverhampton","MARKS&SPENCER PLC SACA","3.87","Mayoral Expenses","5411","Hospitality","07/02/2017"
"Wolverhampton City Council","http://opendatacommunities.org/id/metropolitan-district-council/wolverhampton","THE NEW BRIDGE GUEST H","75.00","CIN/CP S17 SW Unit - Area 5","7011","Services - Supplies & Services to users","07/02/2017"
"Wolverhampton City Council","http://opendatacommunities.org/id/metropolitan-district-council/wolverhampton","THE NEW BRIDGE GUEST H","150.00","CIN/CP S17 SW Unit - Area 5","7011","Services - Supplies & Services to users","07/02/2017"
"Wolverhampton City Council","http://opendatacommunities.org/id/metropolitan-district-council/wolverhampton","SWANFLIGHT.COM","225.83","Music Support Team","5948","Equipment - R & M","07/02/2017"
"Wolverhampton City Council","http://opendatacommunities.org/id/metropolitan-district-council/wolverhampton","Trainline","199.72","Adoption and Residence Team & Allowances","4112","Public Transport","07/02/2017"
"Wolverhampton City Council","http://opendatacommunities.org/id/metropolitan-district-council/wolverhampton","POST OFFICE SHOP","65.10","Customer Services","9402","Comms - Postage","07/02/2017"
"Wolverhampton City Council","http://opendatacommunities.org/id/metropolitan-district-council/wolverhampton","REGISTRARS OFFICE","10.00","Private Sector Housing","8299","Services - Fees and Charges","06/02/2017"
"Wolverhampton City Council","http://opendatacommunities.org/id/metropolitan-district-council/wolverhampton","MOTHERCARE","26.67","EIP Locality 2","5311","Equipment - Purchase","06/02/2017"
"Wolverhampton City Council","http://opendatacommunities.org/id/metropolitan-district-council/wolverhampton","Trainline","79.05","Admin & Support","4112","Public Transport","06/02/2017"
"Wolverhampton City Council","http://opendatacommunities.org/id/metropolitan-district-council/wolverhampton","Trainline","74.56","Health Protection & NHS Facing","4112","Public Transport","06/02/2017"
"Wolverhampton City Council","http://opendatacommunities.org/id/metropolitan-district-council/wolverhampton","Trainline","25.86","Information & Intelligence","4112","Public Transport","06/02/2017"
"Wolverhampton City Council","http://opendatacommunities.org/id/metropolitan-district-council/wolverhampton","THE NEW BRIDGE GUEST H","227.00","Referral Team CIN - S17","7011","Services - Supplies & Services to users","06/02/2017"
"Wolverhampton City Council","http://opendatacommunities.org/id/metropolitan-district-council/wolverhampton","BOOKWHEN","9.00","Craftplay","7372","Computing - Purchase of Software","06/02/2017"
"Wolverhampton City Council","http://opendatacommunities.org/id/metropolitan-district-council/wolverhampton","123 REG R/T","13.98","Technical Support","5968","Subscriptions","06/02/2017"
"Wolverhampton City Council","http://opendatacommunities.org/id/metropolitan-district-council/wolverhampton","Wix.com","93.13","Technical Support","5817","Computing - Purchase of Software","06/02/2017"
"Wolverhampton City Council","http://opendatacommunities.org/id/metropolitan-district-council/wolverhampton","Amazon UK Marketplace","8.82","Global Budgets","5942","Books","06/02/2017"
"Wolverhampton City Council","http://opendatacommunities.org/id/metropolitan-district-council/wolverhampton","Amazon UK Marketplace","7.88","Global Budgets","5942","Books","06/02/2017"
"Wolverhampton City Council","http://opendatacommunities.org/id/metropolitan-district-council/wolverhampton","ASDA HOME SHOPPING","-0.05","Ernest Bold Court","5411","Provisions (Not for resale)","06/02/2017"
"Wolverhampton City Council","http://opendatacommunities.org/id/metropolitan-district-council/wolverhampton","ASDA HOME SHOPPING","89.83","Ernest Bold Court","5411","Provisions (Not for resale)","06/02/2017"
"Wolverhampton City Council","http://opendatacommunities.org/id/metropolitan-district-council/wolverhampton","Amazon UK Marketplace","29.15","Members Expenses","5942","Equipment - Purchase","06/02/2017"
"Wolverhampton City Council","http://opendatacommunities.org/id/metropolitan-district-council/wolverhampton","WWW.ICO.GOV.UK","35.00","Members Expenses","9399","Subscriptions","06/02/2017"
"Wolverhampton City Council","http://opendatacommunities.org/id/metropolitan-district-council/wolverhampton","Trainline","83.84","Health Protection & NHS Facing","4112","Public Transport","06/02/2017"
"Wolverhampton City Council","http://opendatacommunities.org/id/metropolitan-district-council/wolverhampton","SCREWFIX DIRECT LT","49.92","Parkfields Centre","5211","R&M - Departmental planned (external)","06/02/2017"
"Wolverhampton City Council","http://opendatacommunities.org/id/metropolitan-district-council/wolverhampton","CURRYS","119.16","Bilston Town Hall","5732","Equipment - Purchase","06/02/2017"
"Wolverhampton City Council","http://opendatacommunities.org/id/metropolitan-district-council/wolverhampton","WM MORRISONS","17.58","Managing Director","5411","Provisions (Not for resale)","06/02/2017"
"Wolverhampton City Council","http://opendatacommunities.org/id/metropolitan-district-council/wolverhampton","WM MORRISONS","29.83","Managing Director","5411","Provisions (Not for resale)","06/02/2017"
"Wolverhampton City Council","http://opendatacommunities.org/id/metropolitan-district-council/wolverhampton","BOXERCISE.CO.UK","139.00","WV Active Business Support","7997","Training Expenses","06/02/2017"
"Wolverhampton City Council","http://opendatacommunities.org/id/metropolitan-district-council/wolverhampton","ASDA GEORGE COM LEEDS","40.00","Emergency Duty Team","5411","Provisions (Not for resale)","06/02/2017"
"Wolverhampton City Council","http://opendatacommunities.org/id/metropolitan-district-council/wolverhampton","YOUNG`S SHOE REPAIRS L","10.00","Wolverhampton Indoor and Open Market","7251","Fixtures and Fittings - R&M","06/02/2017"
"Wolverhampton City Council","http://opendatacommunities.org/id/metropolitan-district-council/wolverhampton","SCREWFIX DIRECT LT","14.63","Caretakers Community Centre","5211","R&M - Departmental planned (external)","06/02/2017"
"Wolverhampton City Council","http://opendatacommunities.org/id/metropolitan-district-council/wolverhampton","ASDA SUPERSTORE","39.70","CIN/CP S17 SW Unit - Area 2","5411","Provisions (Not for resale)","06/02/2017"
"Wolverhampton City Council","http://opendatacommunities.org/id/metropolitan-district-council/wolverhampton","WM MORRISONS","52.23","Delivery & OCE Development","5411","Provisions (Not for resale)","06/02/2017"
"Wolverhampton City Council","http://opendatacommunities.org/id/metropolitan-district-council/wolverhampton","ASDA SUPERSTORE","120.00","CIN/CP S17 SW Unit - Area 2","5411","Provisions (Not for resale)","06/02/2017"
"Wolverhampton City Council","http://opendatacommunities.org/id/metropolitan-district-council/wolverhampton","WICKES BUILDING","61.64","Central Baths","5211","R&M - Departmental planned (external)","06/02/2017"
"Wolverhampton City Council","http://opendatacommunities.org/id/metropolitan-district-council/wolverhampton","WM MORRISONS","30.67","Delivery & OCE Development","5411","Provisions (Not for resale)","06/02/2017"
"Wolverhampton City Council","http://opendatacommunities.org/id/metropolitan-district-council/wolverhampton","B&M RETAIL","22.99","LAC Transitions Team","5310","Equipment - Purchase","06/02/2017"
"Wolverhampton City Council","http://opendatacommunities.org/id/metropolitan-district-council/wolverhampton","PAYPAL  MEI YE","50.58","Licensing - General","5732","Equipment - Purchase","06/02/2017"
"Wolverhampton City Council","http://opendatacommunities.org/id/metropolitan-district-council/wolverhampton","WILKO RETAIL LIMIT","1.66","Global Budgets","5722","Stationery","06/02/2017"
"Wolverhampton City Council","http://opendatacommunities.org/id/metropolitan-district-council/wolverhampton","ART INTERIORS & FRAMES","23.51","Global Budgets","5999","Stationery","06/02/2017"
"Wolverhampton City Council","http://opendatacommunities.org/id/metropolitan-district-council/wolverhampton","WWW.JOBSITE.CO.UK","390.00","Payments Team","7311","Marketing \ Non-staff advertising","06/02/2017"
"Wolverhampton City Council","http://opendatacommunities.org/id/metropolitan-district-council/wolverhampton","Amazon UK Marketplace","58.50","Workforce Development","5942","Books","06/02/2017"
"Wolverhampton City Council","http://opendatacommunities.org/id/metropolitan-district-council/wolverhampton","WWW.NISBETS.COM","71.20","Upper Pendeford Farm Childrens Home","5964","Equipment - Purchase","06/02/2017"
"Wolverhampton City Council","http://opendatacommunities.org/id/metropolitan-district-council/wolverhampton","CT WOLVERHAMPTON","140.00","CIN/CP S17 SW Unit - Area 1","8398","Equipment - Purchase","06/02/2017"
"Wolverhampton City Council","http://opendatacommunities.org/id/metropolitan-district-council/wolverhampton","WCC PHONE PAYMENTS","231.01","Childrens with Disabilities Team","9399","Financial Assistance In Exceptional Circ","06/02/2017"
"Wolverhampton City Council","http://opendatacommunities.org/id/metropolitan-district-council/wolverhampton","GODADDY COM EUROPE","61.20","Register Office","4816","Computing - Purchase of Software","06/02/2017"
"Wolverhampton City Council","http://opendatacommunities.org/id/metropolitan-district-council/wolverhampton","TRAINLINE","-85.10","Adoption and Residence Team & Allowances","4112","Public Transport","06/02/2017"
"Wolverhampton City Council","http://opendatacommunities.org/id/metropolitan-district-council/wolverhampton","ASDA HOME SHOPPING","-1.66","EIP Locality 5","5411","Provisions (Not for resale)","06/02/2017"
"Wolverhampton City Council","http://opendatacommunities.org/id/metropolitan-district-council/wolverhampton","ASDA HOME SHOPPING","52.95","EIP Locality 5","5411","Provisions (Not for resale)","06/02/2017"
"Wolverhampton City Council","http://opendatacommunities.org/id/metropolitan-district-council/wolverhampton","DOMINOS PIZZA 28023","37.98","Delivery & OCE Development","5814","Services - Supplies & Services to users","06/02/2017"
"Wolverhampton City Council","http://opendatacommunities.org/id/metropolitan-district-council/wolverhampton","CHILLINGTON SELF STORA","180.00","LAC Transitions Team","4214","Client Allowances","03/02/2017"
"Wolverhampton City Council","http://opendatacommunities.org/id/metropolitan-district-council/wolverhampton","NRS HEALTHCARE","41.40","Central Baths","5047","Services - Professional Fees","03/02/2017"
"Wolverhampton City Council","http://opendatacommunities.org/id/metropolitan-district-council/wolverhampton","WOLVERHAMPTON TROPHY C","20.83","Communications & Marketing - General","5999","Equipment - Purchase","03/02/2017"
"Wolverhampton City Council","http://opendatacommunities.org/id/metropolitan-district-council/wolverhampton","ARGOS LTD","137.48","LAC Transitions Team","5310","Client Allowances","03/02/2017"
"Wolverhampton City Council","http://opendatacommunities.org/id/metropolitan-district-council/wolverhampton","WOLVERHAMPTON CC","10.42","Headstart Phase 3","7523","Parking Fees","03/02/2017"
"Wolverhampton City Council","http://opendatacommunities.org/id/metropolitan-district-council/wolverhampton","SCREWFIX DIRECT LT","42.98","Cleaning of Buildings - General","5211","Materials","03/02/2017"
"Wolverhampton City Council","http://opendatacommunities.org/id/metropolitan-district-council/wolverhampton","INS OF CONTEMP ART","25.95","Black Art Movement","8699","Subscriptions","03/02/2017"
"Wolverhampton City Council","http://opendatacommunities.org/id/metropolitan-district-council/wolverhampton","POSITIVE EYE LTD","189.00","SEN Sensory Inclusion","5734","Equipment - Purchase","03/02/2017"
"Wolverhampton City Council","http://opendatacommunities.org/id/metropolitan-district-council/wolverhampton","Amazon UK Marketplace","39.00","SEN Sensory Inclusion","5942","Equipment - Purchase","03/02/2017"
"Wolverhampton City Council","http://opendatacommunities.org/id/metropolitan-district-council/wolverhampton","TWINKL LTD","24.99","SEN Sensory Inclusion","8699","Equipment - Purchase","03/02/2017"
"Wolverhampton City Council","http://opendatacommunities.org/id/metropolitan-district-council/wolverhampton","TWINKL LTD","24.99","SEN Sensory Inclusion","8699","Equipment - Purchase","03/02/2017"
"Wolverhampton City Council","http://opendatacommunities.org/id/metropolitan-district-council/wolverhampton","Amazon UK Marketplace","23.97","SEN Sensory Inclusion","5942","Equipment - Purchase","03/02/2017"
"Wolverhampton City Council","http://opendatacommunities.org/id/metropolitan-district-council/wolverhampton","GO CARZ","4.51","EIP Locality 5","4121","Client Transport","03/02/2017"
"Wolverhampton City Council","http://opendatacommunities.org/id/metropolitan-district-council/wolverhampton","GO CARZ","6.19","EIP Locality 5","4121","Client Transport","03/02/2017"
"Wolverhampton City Council","http://opendatacommunities.org/id/metropolitan-district-council/wolverhampton","SAINSBURYS (2340)","119.00","CIN/CP S17 SW Unit - Area 3","5411","Provisions (Not for resale)","03/02/2017"
"Wolverhampton City Council","http://opendatacommunities.org/id/metropolitan-district-council/wolverhampton","DC PAYMENTS","100.00","EIP Locality 8","6011","Grant Payments","03/02/2017"
"Wolverhampton City Council","http://opendatacommunities.org/id/metropolitan-district-council/wolverhampton","POST OFFICE COUNTER","714.00","Adoption and Residence Team & Allowances","9402","Comms - Postage","03/02/2017"
"Wolverhampton City Council","http://opendatacommunities.org/id/metropolitan-district-council/wolverhampton","BARUCH ENTERPRISES","54.99","Strategic ICTS (ICT Serv Budget)","5065","Computing - Purchase of Hardware","03/02/2017"
"Wolverhampton City Council","http://opendatacommunities.org/id/metropolitan-district-council/wolverhampton","AMAZON UK RETAIL AMAZO","38.32","Strategic ICTS (ICT Serv Budget)","5999","Equipment - Purchase","03/02/2017"
"Wolverhampton City Council","http://opendatacommunities.org/id/metropolitan-district-council/wolverhampton","Amazon UK Marketplace","8.98","SEN Sensory Inclusion","5942","Equipment - Purchase","03/02/2017"
"Wolverhampton City Council","http://opendatacommunities.org/id/metropolitan-district-council/wolverhampton","Amazon UK Marketplace","8.95","SEN Sensory Inclusion","5942","Equipment - Purchase","03/02/2017"
"Wolverhampton City Council","http://opendatacommunities.org/id/metropolitan-district-council/wolverhampton","TIMPSON LTD","16.50","Craftplay","7251","Fixtures and Fittings - R&M","03/02/2017"
"Wolverhampton City Council","http://opendatacommunities.org/id/metropolitan-district-council/wolverhampton","POST OFFICE COUNTER","7.25","Head of Service - CINCP","9402","Comms - Postage","03/02/2017"
"Wolverhampton City Council","http://opendatacommunities.org/id/metropolitan-district-council/wolverhampton","AMAZON UK RETAIL AMAZO","14.80","Environmental Health - Pub Prot - Gen","5999","Equipment - Purchase","03/02/2017"
"Wolverhampton City Council","http://opendatacommunities.org/id/metropolitan-district-council/wolverhampton","ARGOS DIRECT","-35.99","CIN/CP S17 SW Unit - Area 5","5310","Equipment - Purchase","03/02/2017"
"Wolverhampton City Council","http://opendatacommunities.org/id/metropolitan-district-council/wolverhampton","ASDA STORES 4452","11.49","Civic Centre Catering","5411","Catering","03/02/2017"
"Wolverhampton City Council","http://opendatacommunities.org/id/metropolitan-district-council/wolverhampton","PERSONAL-PRODUCTS.","101.84","Civic Centre Catering","4816","Catering","03/02/2017"
"Wolverhampton City Council","http://opendatacommunities.org/id/metropolitan-district-council/wolverhampton","WICKES","4.29","Education Catering - General Overheads","5211","Provisions (Not for resale)","03/02/2017"
"Wolverhampton City Council","http://opendatacommunities.org/id/metropolitan-district-council/wolverhampton","BUILD A BEAR WORKSHOP","179.25","Education Catering - General Overheads","5999","Provisions (Not for resale)","03/02/2017"
"Wolverhampton City Council","http://opendatacommunities.org/id/metropolitan-district-council/wolverhampton","FONE SHACK UK LTD","25.98","Ground Maintenance Overheads","4812","Equipment - Purchase","03/02/2017"
"Wolverhampton City Council","http://opendatacommunities.org/id/metropolitan-district-council/wolverhampton","GO CARZ","3.99","EIP Locality 5","4121","Client Transport","03/02/2017"
"Wolverhampton City Council","http://opendatacommunities.org/id/metropolitan-district-council/wolverhampton","PLATINUMENT","8.33","LAC Transitions Team","5712","Client Allowances","02/02/2017"
"Wolverhampton City Council","http://opendatacommunities.org/id/metropolitan-district-council/wolverhampton","Amazon UK Marketplace","175.53","Headstart Phase 3","5942","Computing - Consumables","02/02/2017"
"Wolverhampton City Council","http://opendatacommunities.org/id/metropolitan-district-council/wolverhampton","TESCO STORES 5397","14.28","EIP Locality 1","5411","Provisions (Not for resale)","02/02/2017"
"Wolverhampton City Council","http://opendatacommunities.org/id/metropolitan-district-council/wolverhampton","Trainline","83.84","CIN/CP S17 SW Unit - Area 2","4112","Public Transport","02/02/2017"
"Wolverhampton City Council","http://opendatacommunities.org/id/metropolitan-district-council/wolverhampton","Trainline","71.91","CIN/CP S17 SW Unit - Area 2","4112","Public Transport","02/02/2017"
"Wolverhampton City Council","http://opendatacommunities.org/id/metropolitan-district-council/wolverhampton","CUMMINGS BROTHERS LOCK","5.00","Cleaning of Buildings - General","7399","Equipment - Purchase","02/02/2017"
"Wolverhampton City Council","http://opendatacommunities.org/id/metropolitan-district-council/wolverhampton","SCREWFIX DIRECT LT","142.99","Cleaning of Buildings - General","5211","Materials","02/02/2017"
"Wolverhampton City Council","http://opendatacommunities.org/id/metropolitan-district-council/wolverhampton","WWW.CATERING24.CO.UK","105.71","EIP Locality 1","5999","Provisions (Not for resale)","02/02/2017"
"Wolverhampton City Council","http://opendatacommunities.org/id/metropolitan-district-council/wolverhampton","SAINSBURYS 2040","13.52","Duke Street Bungalows","5411","Stationery","02/02/2017"
"Wolverhampton City Council","http://opendatacommunities.org/id/metropolitan-district-council/wolverhampton","Amazon UK Marketplace","1.89","SEN Sensory Inclusion","5942","Equipment - Purchase","02/02/2017"
"Wolverhampton City Council","http://opendatacommunities.org/id/metropolitan-district-council/wolverhampton","Amazon UK Marketplace","23.83","SEN Sensory Inclusion","5942","Equipment - Purchase","02/02/2017"
"Wolverhampton City Council","http://opendatacommunities.org/id/metropolitan-district-council/wolverhampton","POST OFFICE COUNTER","36.24","Education Catering - General Overheads","9402","Comms - Postage","02/02/2017"
"Wolverhampton City Council","http://opendatacommunities.org/id/metropolitan-district-council/wolverhampton","Amazon UK Marketplace","159.96","Street Cleansing Overheads","5942","Equipment - Purchase","02/02/2017"
"Wolverhampton City Council","http://opendatacommunities.org/id/metropolitan-district-council/wolverhampton","ALDI","37.18","LAC Transitions Team","5411","Provisions (Not for resale)","02/02/2017"
"Wolverhampton City Council","http://opendatacommunities.org/id/metropolitan-district-council/wolverhampton","SAINSBURYS 2040","17.60","LAC Transitions Team","5411","Provisions (Not for resale)","02/02/2017"
"Wolverhampton City Council","http://opendatacommunities.org/id/metropolitan-district-council/wolverhampton","Virgin Trains","66.30","Information Governance Team","4112","Public Transport","02/02/2017"
"Wolverhampton City Council","http://opendatacommunities.org/id/metropolitan-district-council/wolverhampton","TRAVELODGE","101.75","Adoption and Residence Team & Allowances","3615","Services - Supplies & Services to users","02/02/2017"
"Wolverhampton City Council","http://opendatacommunities.org/id/metropolitan-district-council/wolverhampton","HILTON","719.33","Adoption and Residence Team & Allowances","3504","Services - Supplies & Services to users","02/02/2017"
"Wolverhampton City Council","http://opendatacommunities.org/id/metropolitan-district-council/wolverhampton","NPOWER","226.53","No Recourse to Public Funds - CIN/CP","4900","Electricity","02/02/2017"
"Wolverhampton City Council","http://opendatacommunities.org/id/metropolitan-district-council/wolverhampton","Trainline","194.82","CIN/CP S17 SW Unit - Area 4","4112","Public Transport","02/02/2017"
"Wolverhampton City Council","http://opendatacommunities.org/id/metropolitan-district-council/wolverhampton","ASDA SUPERSTORE","9.93","EIP Locality 5","5411","Provisions (Not for resale)","02/02/2017"
"Wolverhampton City Council","http://opendatacommunities.org/id/metropolitan-district-council/wolverhampton","ARGOS LTD","152.34","LAC Transitions Team","5310","Client Allowances","02/02/2017"
"Wolverhampton City Council","http://opendatacommunities.org/id/metropolitan-district-council/wolverhampton","ARGOS LTD","66.66","LAC Transitions Team","5310","Client Allowances","02/02/2017"
"Wolverhampton City Council","http://opendatacommunities.org/id/metropolitan-district-council/wolverhampton","Cross Country Trains","19.00","Commissioning Disabilities","4112","Public Transport","02/02/2017"
"Wolverhampton City Council","http://opendatacommunities.org/id/metropolitan-district-council/wolverhampton","Amazon UK Marketplace","39.95","Technical Support","5942","Equipment - Purchase","02/02/2017"
"Wolverhampton City Council","http://opendatacommunities.org/id/metropolitan-district-council/wolverhampton","ARGOS LTD","-139.98","CIN/CP S17 SW Unit - Area 6","5310","Equipment - Purchase","02/02/2017"
"Wolverhampton City Council","http://opendatacommunities.org/id/metropolitan-district-council/wolverhampton","WAYFAIR STORES LIM","45.99","CIN/CP S17 SW Unit - Area 5","5965","Equipment - Purchase","02/02/2017"
"Wolverhampton City Council","http://opendatacommunities.org/id/metropolitan-district-council/wolverhampton","GOOGLE  SVCSAPPS_wolve","3.30","Civic Halls Non Direct Management A/C","5968","Subscriptions","02/02/2017"
"Wolverhampton City Council","http://opendatacommunities.org/id/metropolitan-district-council/wolverhampton","SAINSBURYS (2340)","35.75","Civic Centre Catering","5411","Catering","02/02/2017"
"Wolverhampton City Council","http://opendatacommunities.org/id/metropolitan-district-council/wolverhampton","REGISTRARS OFFICE","21.00","CIN/CP S17 SW Unit - Area 7","8299","Training Expenses","02/02/2017"
"Wolverhampton City Council","http://opendatacommunities.org/id/metropolitan-district-council/wolverhampton","WWW.ADASS.ORG.UK","499.00","Workforce Development","8398","Training Expenses","02/02/2017"
"Wolverhampton City Council","http://opendatacommunities.org/id/metropolitan-district-council/wolverhampton","Amazon UK Marketplace","1.37","Upper Pendeford Farm Childrens Home","5942","Books","02/02/2017"
"Wolverhampton City Council","http://opendatacommunities.org/id/metropolitan-district-council/wolverhampton","WWW.MOTOR.ORG.UK","72.00","Fleet Management","5999","Equipment - Purchase","02/02/2017"
"Wolverhampton City Council","http://opendatacommunities.org/id/metropolitan-district-council/wolverhampton","Virgin Trains","73.00","Music Support Team","4112","Equipment - Purchase","02/02/2017"
"Wolverhampton City Council","http://opendatacommunities.org/id/metropolitan-district-council/wolverhampton","P WADDINGTON AND CO","20.40","Pendeford Nature Reserve","4900","Materials","02/02/2017"
"Wolverhampton City Council","http://opendatacommunities.org/id/metropolitan-district-council/wolverhampton","INN THE SQUARE","56.25","Safeguarding Admin Resource","7011","Services - Supplies & Services to users","01/02/2017"
"Wolverhampton City Council","http://opendatacommunities.org/id/metropolitan-district-council/wolverhampton","FACEBK W8W3DAAF92","2.49","Civic Halls Non Direct Management A/C","7311","Marketing \ Non-staff advertising","01/02/2017"
"Wolverhampton City Council","http://opendatacommunities.org/id/metropolitan-district-council/wolverhampton","FACEBK V8W3DAAF92","214.23","Civic Halls Non Direct Management A/C","7311","Marketing \ Non-staff advertising","01/02/2017"
"Wolverhampton City Council","http://opendatacommunities.org/id/metropolitan-district-council/wolverhampton","ICELAND","6.67","School Crossing Patrol","5411","Catering","01/02/2017"
"Wolverhampton City Council","http://opendatacommunities.org/id/metropolitan-district-council/wolverhampton","BLACK COUNTRY SKIP HIR","145.50","CIN/CP S17 SW Unit - Area 7","7394","Equipment - Purchase","01/02/2017"
"Wolverhampton City Council","http://opendatacommunities.org/id/metropolitan-district-council/wolverhampton","TRAINING COMPANY","229.00","Central Training","8299","Training Expenses","01/02/2017"
"Wolverhampton City Council","http://opendatacommunities.org/id/metropolitan-district-council/wolverhampton","Virgin Trains","34.30","Workforce Development","4112","Public Transport","01/02/2017"
"Wolverhampton City Council","http://opendatacommunities.org/id/metropolitan-district-council/wolverhampton","Amazon UK Marketplace","58.52","Workforce Development","5942","Books","01/02/2017"
"Wolverhampton City Council","http://opendatacommunities.org/id/metropolitan-district-council/wolverhampton","AMAZON UK RETAIL AMAZO","57.35","Upper Pendeford Farm Childrens Home","5999","Equipment - Purchase","01/02/2017"
"Wolverhampton City Council","http://opendatacommunities.org/id/metropolitan-district-council/wolverhampton","Amazon UK Marketplace","6.62","Upper Pendeford Farm Childrens Home","5942","Books","01/02/2017"
"Wolverhampton City Council","http://opendatacommunities.org/id/metropolitan-district-council/wolverhampton","NOTEMACHINE","250.00","Mental Health Assessment & Care Mgmt","6011","Financial Assistance In Exceptional Circ","01/02/2017"
"Wolverhampton City Council","http://opendatacommunities.org/id/metropolitan-district-council/wolverhampton","SAINSBURYS SACAT 2040","26.10","SEN Early Years Team","5411","Equipment - Purchase","01/02/2017"
"Wolverhampton City Council","http://opendatacommunities.org/id/metropolitan-district-council/wolverhampton","AMAZON UK RETAIL AMAZO","63.37","EIP Locality 8","5999","Equipment - Purchase","01/02/2017"
"Wolverhampton City Council","http://opendatacommunities.org/id/metropolitan-district-council/wolverhampton","WWW.PROFILEPRODUCTIONS","125.00","Transformation","8999","Training Expenses","01/02/2017"
"Wolverhampton City Council","http://opendatacommunities.org/id/metropolitan-district-council/wolverhampton","CUMMINGS BROTHERS LOCK","11.25","Public Conveniences","7399","R&M - Departmental planned (external)","01/02/2017"
"Wolverhampton City Council","http://opendatacommunities.org/id/metropolitan-district-council/wolverhampton","PSU","32.08","Communications & Marketing - General","8220","Printing","01/02/2017"
"Wolverhampton City Council","http://opendatacommunities.org/id/metropolitan-district-council/wolverhampton","FACEBK PSHC4ANA82","48.79","Communications & Marketing - General","7311","Marketing \ Non-staff advertising","01/02/2017"
"Wolverhampton City Council","http://opendatacommunities.org/id/metropolitan-district-council/wolverhampton","FACEBK NSHC4ANA82","171.15","Communications & Marketing - General","7311","Marketing \ Non-staff advertising","01/02/2017"
"Wolverhampton City Council","http://opendatacommunities.org/id/metropolitan-district-council/wolverhampton","FACEBK XVBRYBSAR2","286.01","Communications & Marketing - General","7311","Marketing \ Non-staff advertising","01/02/2017"
"Wolverhampton City Council","http://opendatacommunities.org/id/metropolitan-district-council/wolverhampton","Virgin Trains","52.00","Revenues","4112","Public Transport","01/02/2017"
"Wolverhampton City Council","http://opendatacommunities.org/id/metropolitan-district-council/wolverhampton","BARCLAYS BANK PLC","250.00","CIN/CP S17 SW Unit - Area 6","6011","Financial Assistance In Exceptional Circ","01/02/2017"
"Wolverhampton City Council","http://opendatacommunities.org/id/metropolitan-district-council/wolverhampton","WWW.JP-UK.CO.UK","779.80","Black Art Movement","5943","Equipment - Purchase","01/02/2017"
"Wolverhampton City Council","http://opendatacommunities.org/id/metropolitan-district-council/wolverhampton","HIGHFIELD HOUSE HO","175.00","No Recourse to Public Funds - CIN/CP","7011","Services - Supplies & Services to users","01/02/2017"
"Wolverhampton City Council","http://opendatacommunities.org/id/metropolitan-district-council/wolverhampton","ASDA SUPERSTORE","22.07","EIP Locality 5","5411","Provisions (Not for resale)","01/02/2017"
"Wolverhampton City Council","http://opendatacommunities.org/id/metropolitan-district-council/wolverhampton","ARGOS RETAIL GROUP","20.82","EIP Locality 2","5310","Equipment - Purchase","01/02/2017"
"Wolverhampton City Council","http://opendatacommunities.org/id/metropolitan-district-council/wolverhampton","NATWEST BANK","110.00","EIP Locality 2","6011","Equipment - Purchase","01/02/2017"
"Wolverhampton City Council","http://opendatacommunities.org/id/metropolitan-district-council/wolverhampton","Trainline","78.74","Ambrosia Project","4112","Public Transport","01/02/2017"
"Wolverhampton City Council","http://opendatacommunities.org/id/metropolitan-district-council/wolverhampton","FONE SHACK UK LTD","29.12","Neighbourhood Management Central","4812","Comms - Mobile Telephones","01/02/2017"
"Wolverhampton City Council","http://opendatacommunities.org/id/metropolitan-district-council/wolverhampton","AMAZON UK RETAIL AMAZO","8.77","Technical Support","5999","Equipment - Purchase","01/02/2017"
"Wolverhampton City Council","http://opendatacommunities.org/id/metropolitan-district-council/wolverhampton","AMAZON UK RETAIL AMAZO","25.26","Technical Support","5999","Equipment - Purchase","01/02/2017"
"Wolverhampton City Council","http://opendatacommunities.org/id/metropolitan-district-council/wolverhampton","Amazon UK Marketplace","85.00","Technical Support","5942","Equipment - Purchase","01/02/2017"
"Wolverhampton City Council","http://opendatacommunities.org/id/metropolitan-district-council/wolverhampton","PAYPAL  BANANAPRINT","16.90","Technical Support","8931","Services - Professional Fees","01/02/2017"
"Wolverhampton City Council","http://opendatacommunities.org/id/metropolitan-district-council/wolverhampton","ITUNES.COM/BILL","38.99","Learning Technologies","5735","Computing - Purchase of Software","01/02/2017"
"Wolverhampton City Council","http://opendatacommunities.org/id/metropolitan-district-council/wolverhampton","ITUNES.COM/BILL","38.99","Learning Technologies","5735","Computing - Purchase of Software","01/02/2017"
"Wolverhampton City Council","http://opendatacommunities.org/id/metropolitan-district-council/wolverhampton","Amazon UK Marketplace","29.12","Environmental Health - Pub Prot - Gen","5942","Equipment - Purchase","01/02/2017"
"Wolverhampton City Council","http://opendatacommunities.org/id/metropolitan-district-council/wolverhampton","ARGOS RETAIL GROUP","35.99","CIN/CP S17 SW Unit - Area 5","5310","Equipment - Purchase","01/02/2017"
"Wolverhampton City Council","http://opendatacommunities.org/id/metropolitan-district-council/wolverhampton","ARGOS RETAIL GROUP","21.93","CIN/CP S17 SW Unit - Area 5","5310","Equipment - Purchase","01/02/2017"
